Workbook

Sheet MainMenu

Sheet TestInfo
A5: Study or Variety Test Name : | B5: 2016 Example Loan Values
A7: Base Price in Cents per Lint Pound: | B7: 52
A9: Cotton Seed Value ($/ton) : | B9: 185
A11: Picking/Stripping & Moduling Cost per Cwt of Seed Cotton: | B11: 3.2
A13: Ginning Cost Per Pound of Cotton Lint: | B13: 0.12
A15: Pounds of Seed Per Pound of Cotton Lint: | B15: 1.412
A17: Check this box if cotton was raised in TX/NM/OK/KS.
A19: For additional information on how any input data is used, place the cursor over the desired input cell.

Sheet HVIQualityData
A1: =TestInfo!B5&" HVI Data and Quality Information" -> 2016 Example Loan Values HVI Data and Quality Information
L3: Grade & Length | M3: Strength | N3: Mike | P3: Uniformity | Q3: Net
L4: Premium | M4: Premium | N4: Premium | O4: Extraneous | P4: Premium | Q4: Loan
H5: Extraneous Matter | L5: or | M5: or | N5: or | O5: Matter | P5: or | Q5: Price
A6: Variety | B6: Color | C6: Leaf | D6: Mike | E6: Length | F6: Strength | G6: Uniformity | H6: Bark | I6: Preparation | J6: Other | K6: Staple | L6: Discount | M6: Discount | N6: Discount | O6: Discount | P6: Discount | Q6: (cents/lb)
A7: Variety 1 | B7: 41 | C7: 4 | D7: 4.9 | E7: 1.06 | F7: 26 | G7: 81.3 | K7: =IF($E$7>0,VLOOKUP($E$7,HVI,2),0) -> 34 | L7: =IF($K$7=0,0,(VLOOKUP(($B$7*10+$C$7),LOANLOOK,VLOOKUP($K$7,STAPLELOOK,2)+1))) -> 0 | M7: =IF($F$7=0,0,VLOOKUP($F$7,STRENGTHLOOK,2)) -> 0 | N7: =IF(D7>0,VLOOKUP(D7,MIKE,IF(K7<33,1,2)+1),0) -> 0 | O7: =IF(H7<1,0,IF(H7=0,0,IF(H7=1,ExMat1,IF(H7=2,ExMat2,NA()))))+IF(I7<1,0,IF(I7=0,0,IF(I7=1,Prep1,IF(I7=2,Prep2,NA()))))+IF(J7<1,0,IF(J7=0,0,IF(J7=1,OtherEM1,IF(J7=2,OtherEm2,NA())))) -> 0 | P7: =IF(G7=0,0,VLOOKUP(G7,UNIFORMITY,2)) -> 0 | Q7: =IF(K7<1,0,SUM(L7:P7)/100+BASE) -> 52
A8: Variety 2 | B8: 41 | C8: 4 | D8: 4.8 | E8: 1.18 | F8: 28.1 | G8: 81.9 | K8: =IF($E$8>0,VLOOKUP($E$8,HVI,2),0) -> 38 | L8: =IF($K$8=0,0,+(VLOOKUP(($B$8*10+$C$8),LOANLOOK,VLOOKUP($K$8,STAPLELOOK,2)+1))) -> 230 | M8: =IF($F$8=0,0,VLOOKUP($F$8,STRENGTHLOOK,2)) -> 0 | N8: 0 | O8: =IF(H8<1,0,IF(H8=0,0,IF(H8=1,ExMat1,IF(H8=2,ExMat2,NA())))) -> 0 | P8: 0 | Q8: =IF(K8<1,0,SUM(L8:P8)/100+BASE) -> 54.3
A9: Variety 3 | B9: 41 | C9: 4 | D9: 4.5 | E9: 1.18 | F9: 28.1 | G9: 81.6 | K9: =IF($E$9>0,VLOOKUP($E$9,HVI,2),0) -> 38 | L9: =IF($K$9=0,0,+(VLOOKUP(($B$9*10+$C$9),LOANLOOK,VLOOKUP($K$9,STAPLELOOK,2)+1))) -> 230 | M9: =IF($F$9=0,0,VLOOKUP($F$9,STRENGTHLOOK,2)) -> 0 | N9: 0 | O9: 0 | P9: 0 | Q9: =IF(K9<1,0,SUM(L9:P9)/100+BASE) -> 54.3
A10: Variety 4 | B10: 41 | C10: 4 | D10: 4.3 | E10: 1.18 | F10: 28.1 | G10: 80.6 | K10: =IF($E$10>0,VLOOKUP($E$10,HVI,2),0) -> 38 | L10: =IF($K$10=0,0,+(VLOOKUP(($B$10*10+$C$10),LOANLOOK,VLOOKUP($K$10,STAPLELOOK,2)+1))) -> 230 | M10: =IF($F$10=0,0,VLOOKUP($F$10,STRENGTHLOOK,2)) -> 0 | N10: 0 | O10: 0 | P10: 0 | Q10: 54.3
A11: Variety 5 | B11: 41 | C11: 4 | D11: 4.7 | E11: 1.18 | F11: 28.1 | G11: 82.3 | K11: =IF($E$11>0,VLOOKUP($E$11,HVI,2),0) -> 38 | L11: =IF($K$11=0,0,+(VLOOKUP(($B$11*10+$C$11),LOANLOOK,VLOOKUP($K$11,STAPLELOOK,2)+1))) -> 230 | M11: =IF($F$11=0,0,VLOOKUP($F$11,STRENGTHLOOK,2)) -> 0 | N11: 0 | O11: 0 | P11: 5 | Q11: 54.35
A12: Variety 6 | B12: 31 | C12: 6 | D12: 4.8 | E12: 1.18 | F12: 28.1 | G12: 81.7 | K12: =IF($E$12>0,VLOOKUP($E$12,HVI,2),0) -> 38 | L12: =IF($K$12=0,0,+(VLOOKUP(($B$12*10+$C$12),LOANLOOK,VLOOKUP($K$12,STAPLELOOK,2)+1))) -> -210 | M12: =IF($F$12=0,0,VLOOKUP($F$12,STRENGTHLOOK,2)) -> 0 | N12: 0 | O12: 0 | P12: 0 | Q12: 49.9
A13: Variety 7 | B13: 41 | C13: 6 | D13: 5.3 | E13: 1.18 | F13: 28.1 | G13: 82.5 | K13: =IF($E$13>0,VLOOKUP($E$13,HVI,2),0) -> 38 | L13: =IF($K$13=0,0,+(VLOOKUP(($B$13*10+$C$13),LOANLOOK,VLOOKUP($K$13,STAPLELOOK,2)+1))) -> -275 | M13: =IF($F$13=0,0,VLOOKUP($F$13,STRENGTHLOOK,2)) -> 0 | N13: -375 | O13: 0 | P13: 5 | Q13: 45.55
A14: Variety 8 | B14: 32 | C14: 7 | D14: 4.8 | E14: 1.18 | F14: 28.1 | G14: 81.3 | K14: =IF($E$14>0,VLOOKUP($E$14,HVI,2),0) -> 38 | L14: =IF($K$14=0,0,+(VLOOKUP(($B$14*10+$C$14),LOANLOOK,VLOOKUP($K$14,STAPLELOOK,2)+1))) -> -520 | M14: =IF($F$14=0,0,VLOOKUP($F$14,STRENGTHLOOK,2)) -> 0 | N14: 0 | O14: 0 | P14: 0 | Q14: 46.8
A15: Variety 9 | B15: 41 | C15: 6 | D15: 4.6 | E15: 1.18 | F15: 28.1 | G15: 82.2 | K15: =IF($E$15>0,VLOOKUP($E$15,HVI,2),0) -> 38 | L15: =IF($K$15=0,0,+(VLOOKUP(($B$15*10+$C$15),LOANLOOK,VLOOKUP($K$15,STAPLELOOK,2)+1))) -> -275 | M15: =IF($F$15=0,0,VLOOKUP($F$15,STRENGTHLOOK,2)) -> 0 | N15: 0 | O15: 0 | P15: 5 | Q15: 49.3
A16: Variety 10 | B16: 31 | C16: 6 | D16: 5.2 | E16: 1.18 | F16: 28.1 | G16: 82.2 | K16: =IF($E$16>0,VLOOKUP($E$16,HVI,2),0) -> 38 | L16: =IF($K$16=0,0,+(VLOOKUP(($B$16*10+$C$16),LOANLOOK,VLOOKUP($K$16,STAPLELOOK,2)+1))) -> -210 | M16: =IF($F$16=0,0,VLOOKUP($F$16,STRENGTHLOOK,2)) -> 0 | N16: -230 | O16: 0 | P16: 5 | Q16: 47.65
K17: =IF($E$17>0,VLOOKUP($E$17,HVI,2),0) -> 0 | L17: =IF($K$17=0,0,+(VLOOKUP(($B$17*10+$C$17),LOANLOOK,VLOOKUP($K$17,STAPLELOOK,2)+1))) -> 0 | M17: =IF($F$17=0,0,VLOOKUP($F$17,STRENGTHLOOK,2)) -> 0 | N17: 0 | O17: 0 | P17: 0 | Q17: 0
K18: =IF($E$18>0,VLOOKUP($E$18,HVI,2),0) -> 0 | L18: =IF($K$18=0,0,+(VLOOKUP(($B$18*10+$C$18),LOANLOOK,VLOOKUP($K$18,STAPLELOOK,2)+1))) -> 0 | M18: =IF($F$18=0,0,VLOOKUP($F$18,STRENGTHLOOK,2)) -> 0 | N18: 0 | O18: 0 | P18: 0 | Q18: 0
K19: =IF($E$19>0,VLOOKUP($E$19,HVI,2),0) -> 0 | L19: =IF($K$19=0,0,+(VLOOKUP(($B$19*10+$C$19),LOANLOOK,VLOOKUP($K$19,STAPLELOOK,2)+1))) -> 0 | M19: =IF($F$19=0,0,VLOOKUP($F$19,STRENGTHLOOK,2)) -> 0 | N19: 0 | O19: 0 | P19: 0 | Q19: 0
K20: =IF($E$20>0,VLOOKUP($E$20,HVI,2),0) -> 0 | L20: =IF($K$20=0,0,+(VLOOKUP(($B$20*10+$C$20),LOANLOOK,VLOOKUP($K$20,STAPLELOOK,2)+1))) -> 0 | M20: =IF($F$20=0,0,VLOOKUP($F$20,STRENGTHLOOK,2)) -> 0 | N20: 0 | O20: 0 | P20: 0 | Q20: 0
K21: =IF($E$21>0,VLOOKUP($E$21,HVI,2),0) -> 0 | L21: =IF($K$21=0,0,+(VLOOKUP(($B$21*10+$C$21),LOANLOOK,VLOOKUP($K$21,STAPLELOOK,2)+1))) -> 0 | M21: =IF($F$21=0,0,VLOOKUP($F$21,STRENGTHLOOK,2)) -> 0 | N21: 0 | O21: 0 | P21: 0 | Q21: 0
K22: =IF($E$22>0,VLOOKUP($E$22,HVI,2),0) -> 0 | L22: =IF($K$22=0,0,+(VLOOKUP(($B$22*10+$C$22),LOANLOOK,VLOOKUP($K$22,STAPLELOOK,2)+1))) -> 0 | M22: =IF($F$22=0,0,VLOOKUP($F$22,STRENGTHLOOK,2)) -> 0 | N22: 0 | O22: 0 | P22: 0 | Q22: 0
K23: =IF($E$23>0,VLOOKUP($E$23,HVI,2),0) -> 0 | L23: =IF($K$23=0,0,+(VLOOKUP(($B$23*10+$C$23),LOANLOOK,VLOOKUP($K$23,STAPLELOOK,2)+1))) -> 0 | M23: =IF($F$23=0,0,VLOOKUP($F$23,STRENGTHLOOK,2)) -> 0 | N23: 0 | O23: 0 | P23: 0 | Q23: 0
K24: =IF($E$24>0,VLOOKUP($E$24,HVI,2),0) -> 0 | L24: =IF($K$24=0,0,+(VLOOKUP(($B$24*10+$C$24),LOANLOOK,VLOOKUP($K$24,STAPLELOOK,2)+1))) -> 0 | M24: =IF($F$24=0,0,VLOOKUP($F$24,STRENGTHLOOK,2)) -> 0 | N24: 0 | O24: 0 | P24: 0 | Q24: 0
K25: =IF($E$25>0,VLOOKUP($E$25,HVI,2),0) -> 0 | L25: =IF($K$25=0,0,+(VLOOKUP(($B$25*10+$C$25),LOANLOOK,VLOOKUP($K$25,STAPLELOOK,2)+1))) -> 0 | M25: =IF($F$25=0,0,VLOOKUP($F$25,STRENGTHLOOK,2)) -> 0 | N25: 0 | O25: 0 | P25: 0 | Q25: 0
K26: =IF($E$26>0,VLOOKUP($E$26,HVI,2),0) -> 0 | L26: =IF($K$26=0,0,+(VLOOKUP(($B$26*10+$C$26),LOANLOOK,VLOOKUP($K$26,STAPLELOOK,2)+1))) -> 0 | M26: =IF($F$26=0,0,VLOOKUP($F$26,STRENGTHLOOK,2)) -> 0 | N26: 0 | O26: 0 | P26: 0 | Q26: 0
K27: =IF($E$27>0,VLOOKUP($E$27,HVI,2),0) -> 0 | L27: =IF($K$27=0,0,+(VLOOKUP(($B$27*10+$C$27),LOANLOOK,VLOOKUP($K$27,STAPLELOOK,2)+1))) -> 0 | M27: =IF($F$27=0,0,VLOOKUP($F$27,STRENGTHLOOK,2)) -> 0 | N27: 0 | O27: 0 | P27: 0 | Q27: 0
K28: =IF($E$28>0,VLOOKUP($E$28,HVI,2),0) -> 0 | L28: =IF($K$28=0,0,+(VLOOKUP(($B$28*10+$C$28),LOANLOOK,VLOOKUP($K$28,STAPLELOOK,2)+1))) -> 0 | M28: =IF($F$28=0,0,VLOOKUP($F$28,STRENGTHLOOK,2)) -> 0 | N28: 0 | O28: 0 | P28: 0 | Q28: 0
K29: =IF($E$29>0,VLOOKUP($E$29,HVI,2),0) -> 0 | L29: =IF($K$29=0,0,+(VLOOKUP(($B$29*10+$C$29),LOANLOOK,VLOOKUP($K$29,STAPLELOOK,2)+1))) -> 0 | M29: =IF($F$29=0,0,VLOOKUP($F$29,STRENGTHLOOK,2)) -> 0 | N29: 0 | O29: 0 | P29: 0 | Q29: 0
K30: =IF($E$30>0,VLOOKUP($E$30,HVI,2),0) -> 0 | L30: =IF($K$30=0,0,+(VLOOKUP(($B$30*10+$C$30),LOANLOOK,VLOOKUP($K$30,STAPLELOOK,2)+1))) -> 0 | M30: =IF($F$30=0,0,VLOOKUP($F$30,STRENGTHLOOK,2)) -> 0 | N30: 0 | O30: 0 | P30: 0 | Q30: 0
K31: =IF($E$31>0,VLOOKUP($E$31,HVI,2),0) -> 0 | L31: =IF($K$31=0,0,+(VLOOKUP(($B$31*10+$C$31),LOANLOOK,VLOOKUP($K$31,STAPLELOOK,2)+1))) -> 0 | M31: =IF($F$31=0,0,VLOOKUP($F$31,STRENGTHLOOK,2)) -> 0 | N31: 0 | O31: 0 | P31: 0 | Q31: 0
K32: =IF($E$32>0,VLOOKUP($E$32,HVI,2),0) -> 0 | L32: =IF($K$32=0,0,+(VLOOKUP(($B$32*10+$C$32),LOANLOOK,VLOOKUP($K$32,STAPLELOOK,2)+1))) -> 0 | M32: =IF($F$32=0,0,VLOOKUP($F$32,STRENGTHLOOK,2)) -> 0 | N32: 0 | O32: 0 | P32: 0 | Q32: 0
K33: =IF($E$33>0,VLOOKUP($E$33,HVI,2),0) -> 0 | L33: =IF($K$33=0,0,+(VLOOKUP(($B$33*10+$C$33),LOANLOOK,VLOOKUP($K$33,STAPLELOOK,2)+1))) -> 0 | M33: =IF($F$33=0,0,VLOOKUP($F$33,STRENGTHLOOK,2)) -> 0 | N33: 0 | O33: 0 | P33: 0 | Q33: 0
K34: =IF($E$34>0,VLOOKUP($E$34,HVI,2),0) -> 0 | L34: =IF($K$34=0,0,+(VLOOKUP(($B$34*10+$C$34),LOANLOOK,VLOOKUP($K$34,STAPLELOOK,2)+1))) -> 0 | M34: =IF($F$34=0,0,VLOOKUP($F$34,STRENGTHLOOK,2)) -> 0 | N34: 0 | O34: 0 | P34: 0 | Q34: 0
K35: =IF($E$35>0,VLOOKUP($E$35,HVI,2),0) -> 0 | L35: =IF($K$35=0,0,+(VLOOKUP(($B$35*10+$C$35),LOANLOOK,VLOOKUP($K$35,STAPLELOOK,2)+1))) -> 0 | M35: =IF($F$35=0,0,VLOOKUP($F$35,STRENGTHLOOK,2)) -> 0 | N35: 0 | O35: 0 | P35: 0 | Q35: 0
K36: =IF($E$36>0,VLOOKUP($E$36,HVI,2),0) -> 0 | L36: =IF($K$36=0,0,+(VLOOKUP(($B$36*10+$C$36),LOANLOOK,VLOOKUP($K$36,STAPLELOOK,2)+1))) -> 0 | M36: =IF($F$36=0,0,VLOOKUP($F$36,STRENGTHLOOK,2)) -> 0 | N36: 0 | O36: 0 | P36: 0 | Q36: 0
K37: =IF($E$37>0,VLOOKUP($E$37,HVI,2),0) -> 0 | L37: =IF($K$37=0,0,+(VLOOKUP(($B$37*10+$C$37),LOANLOOK,VLOOKUP($K$37,STAPLELOOK,2)+1))) -> 0 | M37: =IF($F$37=0,0,VLOOKUP($F$37,STRENGTHLOOK,2)) -> 0 | N37: 0 | O37: 0 | P37: 0 | Q37: 0
K38: =IF($E$38>0,VLOOKUP($E$38,HVI,2),0) -> 0 | L38: =IF($K$38=0,0,+(VLOOKUP(($B$38*10+$C$38),LOANLOOK,VLOOKUP($K$38,STAPLELOOK,2)+1))) -> 0 | M38: =IF($F$38=0,0,VLOOKUP($F$38,STRENGTHLOOK,2)) -> 0 | N38: 0 | O38: 0 | P38: 0 | Q38: 0
K39: =IF($E$39>0,VLOOKUP($E$39,HVI,2),0) -> 0 | L39: =IF($K$39=0,0,+(VLOOKUP(($B$39*10+$C$39),LOANLOOK,VLOOKUP($K$39,STAPLELOOK,2)+1))) -> 0 | M39: =IF($F$39=0,0,VLOOKUP($F$39,STRENGTHLOOK,2)) -> 0 | N39: =IF(D39>0,VLOOKUP(D39,MIKE,IF(K39<33,1,2)+1),0) -> 0 | O39: =IF(H39<1,0,IF(H39=0,0,IF(H39=1,ExMat1,IF(H39=2,ExMat2,NA())))) -> 0 | P39: =IF(G39=0,0,VLOOKUP(G39,UNIFORMITY,2)) -> 0 | Q39: 0
K40: =IF($E$40>0,VLOOKUP($E$40,HVI,2),0) -> 0 | L40: =IF($K$40=0,0,+(VLOOKUP(($B$40*10+$C$40),LOANLOOK,VLOOKUP($K$40,STAPLELOOK,2)+1))) -> 0 | M40: =IF($F$40=0,0,VLOOKUP($F$40,STRENGTHLOOK,2)) -> 0 | N40: 0 | O40: 0 | P40: 0 | Q40: 0
K41: =IF($E$41>0,VLOOKUP($E$41,HVI,2),0) -> 0 | L41: =IF($K$41=0,0,+(VLOOKUP(($B$41*10+$C$41),LOANLOOK,VLOOKUP($K$41,STAPLELOOK,2)+1))) -> 0 | M41: =IF($F$41=0,0,VLOOKUP($F$41,STRENGTHLOOK,2)) -> 0 | N41: 0 | O41: 0 | P41: 0 | Q41: 0
K42: =IF($E$42>0,VLOOKUP($E$42,HVI,2),0) -> 0 | L42: =IF($K$42=0,0,+(VLOOKUP(($B$42*10+$C$42),LOANLOOK,VLOOKUP($K$42,STAPLELOOK,2)+1))) -> 0 | M42: =IF($F$42=0,0,VLOOKUP($F$42,STRENGTHLOOK,2)) -> 0 | N42: 0 | O42: 0 | P42: 0 | Q42: 0
K43: =IF($E$43>0,VLOOKUP($E$43,HVI,2),0) -> 0 | L43: =IF($K$43=0,0,+(VLOOKUP(($B$43*10+$C$43),LOANLOOK,VLOOKUP($K$43,STAPLELOOK,2)+1))) -> 0 | M43: =IF($F$43=0,0,VLOOKUP($F$43,STRENGTHLOOK,2)) -> 0 | N43: 0 | O43: 0 | P43: 0 | Q43: 0
K44: =IF($E$44>0,VLOOKUP($E$44,HVI,2),0) -> 0 | L44: =IF($K$44=0,0,+(VLOOKUP(($B$44*10+$C$44),LOANLOOK,VLOOKUP($K$44,STAPLELOOK,2)+1))) -> 0 | M44: =IF($F$44=0,0,VLOOKUP($F$44,STRENGTHLOOK,2)) -> 0 | N44: 0 | O44: 0 | P44: 0 | Q44: 0
K45: =IF($E$45>0,VLOOKUP($E$45,HVI,2),0) -> 0 | L45: =IF($K$45=0,0,+(VLOOKUP(($B$45*10+$C$45),LOANLOOK,VLOOKUP($K$45,STAPLELOOK,2)+1))) -> 0 | M45: =IF($F$45=0,0,VLOOKUP($F$45,STRENGTHLOOK,2)) -> 0 | N45: 0 | O45: 0 | P45: 0 | Q45: 0
K46: =IF($E$46>0,VLOOKUP($E$46,HVI,2),0) -> 0 | L46: =IF($K$46=0,0,+(VLOOKUP(($B$46*10+$C$46),LOANLOOK,VLOOKUP($K$46,STAPLELOOK,2)+1))) -> 0 | M46: =IF($F$46=0,0,VLOOKUP($F$46,STRENGTHLOOK,2)) -> 0 | N46: 0 | O46: 0 | P46: 0 | Q46: 0
K47: =IF($E$47>0,VLOOKUP($E$47,HVI,2),0) -> 0 | L47: =IF($K$47=0,0,+(VLOOKUP(($B$47*10+$C$47),LOANLOOK,VLOOKUP($K$47,STAPLELOOK,2)+1))) -> 0 | M47: =IF($F$47=0,0,VLOOKUP($F$47,STRENGTHLOOK,2)) -> 0 | N47: 0 | O47: 0 | P47: 0 | Q47: 0
K48: =IF($E$48>0,VLOOKUP($E$48,HVI,2),0) -> 0 | L48: =IF($K$48=0,0,+(VLOOKUP(($B$48*10+$C$48),LOANLOOK,VLOOKUP($K$48,STAPLELOOK,2)+1))) -> 0 | M48: =IF($F$48=0,0,VLOOKUP($F$48,STRENGTHLOOK,2)) -> 0 | N48: 0 | O48: 0 | P48: 0 | Q48: 0
K49: =IF($E$49>0,VLOOKUP($E$49,HVI,2),0) -> 0 | L49: =IF($K$49=0,0,+(VLOOKUP(($B$49*10+$C$49),LOANLOOK,VLOOKUP($K$49,STAPLELOOK,2)+1))) -> 0 | M49: =IF($F$49=0,0,VLOOKUP($F$49,STRENGTHLOOK,2)) -> 0 | N49: 0 | O49: 0 | P49: 0 | Q49: 0
K50: =IF($E$50>0,VLOOKUP($E$50,HVI,2),0) -> 0 | L50: =IF($K$50=0,0,+(VLOOKUP(($B$50*10+$C$50),LOANLOOK,VLOOKUP($K$50,STAPLELOOK,2)+1))) -> 0 | M50: =IF($F$50=0,0,VLOOKUP($F$50,STRENGTHLOOK,2)) -> 0 | N50: 0 | O50: 0 | P50: 0 | Q50: 0
K51: =IF($E$51>0,VLOOKUP($E$51,HVI,2),0) -> 0 | L51: =IF($K$51=0,0,+(VLOOKUP(($B$51*10+$C$51),LOANLOOK,VLOOKUP($K$51,STAPLELOOK,2)+1))) -> 0 | M51: =IF($F$51=0,0,VLOOKUP($F$51,STRENGTHLOOK,2)) -> 0 | N51: 0 | O51: 0 | P51: 0 | Q51: 0
K52: =IF($E$52>0,VLOOKUP($E$52,HVI,2),0) -> 0 | L52: =IF($K$52=0,0,+(VLOOKUP(($B$52*10+$C$52),LOANLOOK,VLOOKUP($K$52,STAPLELOOK,2)+1))) -> 0 | M52: =IF($F$52=0,0,VLOOKUP($F$52,STRENGTHLOOK,2)) -> 0 | N52: 0 | O52: 0 | P52: 0 | Q52: 0
K53: =IF($E$53>0,VLOOKUP($E$53,HVI,2),0) -> 0 | L53: =IF($K$53=0,0,+(VLOOKUP(($B$53*10+$C$53),LOANLOOK,VLOOKUP($K$53,STAPLELOOK,2)+1))) -> 0 | M53: =IF($F$53=0,0,VLOOKUP($F$53,STRENGTHLOOK,2)) -> 0 | N53: 0 | O53: 0 | P53: 0 | Q53: 0
K54: =IF($E$54>0,VLOOKUP($E$54,HVI,2),0) -> 0 | L54: =IF($K$54=0,0,+(VLOOKUP(($B$54*10+$C$54),LOANLOOK,VLOOKUP($K$54,STAPLELOOK,2)+1))) -> 0 | M54: =IF($F$54=0,0,VLOOKUP($F$54,STRENGTHLOOK,2)) -> 0 | N54: 0 | O54: 0 | P54: 0 | Q54: 0
K55: =IF($E$55>0,VLOOKUP($E$55,HVI,2),0) -> 0 | L55: =IF($K$55=0,0,+(VLOOKUP(($B$55*10+$C$55),LOANLOOK,VLOOKUP($K$55,STAPLELOOK,2)+1))) -> 0 | M55: =IF($F$55=0,0,VLOOKUP($F$55,STRENGTHLOOK,2)) -> 0 | N55: 0 | O55: 0 | P55: 0 | Q55: 0
K56: =IF($E$56>0,VLOOKUP($E$56,HVI,2),0) -> 0 | L56: =IF($K$56=0,0,+(VLOOKUP(($B$56*10+$C$56),LOANLOOK,VLOOKUP($K$56,STAPLELOOK,2)+1))) -> 0 | M56: =IF($F$56=0,0,VLOOKUP($F$56,STRENGTHLOOK,2)) -> 0 | N56: 0 | O56: 0 | P56: 0 | Q56: 0
K57: =IF($E$57>0,VLOOKUP($E$57,HVI,2),0) -> 0 | L57: =IF($K$57=0,0,+(VLOOKUP(($B$57*10+$C$57),LOANLOOK,VLOOKUP($K$57,STAPLELOOK,2)+1))) -> 0 | M57: =IF($F$57=0,0,VLOOKUP($F$57,STRENGTHLOOK,2)) -> 0 | N57: 0 | O57: 0 | P57: 0 | Q57: 0
K58: =IF($E$58>0,VLOOKUP($E$58,HVI,2),0) -> 0 | L58: =IF($K$58=0,0,+(VLOOKUP(($B$58*10+$C$58),LOANLOOK,VLOOKUP($K$58,STAPLELOOK,2)+1))) -> 0 | M58: =IF($F$58=0,0,VLOOKUP($F$58,STRENGTHLOOK,2)) -> 0 | N58: 0 | O58: 0 | P58: 0 | Q58: 0
K59: =IF($E$59>0,VLOOKUP($E$59,HVI,2),0) -> 0 | L59: =IF($K$59=0,0,+(VLOOKUP(($B$59*10+$C$59),LOANLOOK,VLOOKUP($K$59,STAPLELOOK,2)+1))) -> 0 | M59: =IF($F$59=0,0,VLOOKUP($F$59,STRENGTHLOOK,2)) -> 0 | N59: 0 | O59: 0 | P59: 0 | Q59: 0

Sheet YieldAndReturnData
A1: =TestInfo!B5&" Yield and Per Acre Returns" -> 2016 Example Loan Values Yield and Per Acre Returns
D3: Estimated | H3: Picking
B4: Lint | D4: Seed | E4: Lint | F4: Seed | G4: Gross | H4: & Moduling | I4: Ginning | J4: Net
B5: Yield | C5: Turnout | D5: Yield | E5: Value | F5: Value | G5: Return | H5: Cost | I5: Cost | J5: Return
A6: Variety | B6: (Lbs/Acre) | C6: (%) | D6: (Lbs/Acre) | E6: ($/Acre) | F6: ($/Acre) | G6: ($/Acre) | H6: ($/Acre) | I6: ($/Acre) | J6: ($/Acre)
A7: =+COMPANY -> Variety 1 | B7: 736 | C7: 35.8 | D7: =ROUND(YieldAndReturnData!B7*TestInfo!$B$15,0) -> 1039 | E7: =IF(HVIQualityData!Q7<1,0,ROUND(YieldAndReturnData!B7*HVIQualityData!Q7/100,0)) -> 383 | F7: =ROUND(YieldAndReturnData!D7/2000*TestInfo!$B$9,0) -> 96 | G7: =E7+F7 -> 479 | H7: =IF(YieldAndReturnData!C7>0,ROUND(YieldAndReturnData!B7/(YieldAndReturnData!C7/100)*TestInfo!$B$11/100,0),0) -> 66 | I7: =ROUND(YieldAndReturnData!B7*TestInfo!$B$13,0) -> 88 | J7: =G7-H7-I7 -> 325
A8: =+HVIQualityData!A8 -> Variety 2 | B8: 699 | C8: 37.9 | D8: =ROUND(YieldAndReturnData!B8*TestInfo!$B$15,0) -> 987 | E8: =IF(HVIQualityData!Q8<1,0,ROUND(YieldAndReturnData!B8*HVIQualityData!Q8/100,0)) -> 380 | F8: =ROUND(YieldAndReturnData!D8/2000*TestInfo!$B$9,0) -> 91 | G8: 471 | H8: =IF(YieldAndReturnData!C8>0,ROUND(YieldAndReturnData!B8/(YieldAndReturnData!C8/100)*TestInfo!$B$11/100,0),0) -> 59 | I8: =ROUND(YieldAndReturnData!B8*TestInfo!$B$13,0) -> 84 | J8: 328
A9: =+HVIQualityData!A9 -> Variety 3 | B9: 674 | C9: 35.9 | D9: =ROUND(YieldAndReturnData!B9*TestInfo!$B$15,0) -> 952 | E9: =IF(HVIQualityData!Q9<1,0,ROUND(YieldAndReturnData!B9*HVIQualityData!Q9/100,0)) -> 366 | F9: =ROUND(YieldAndReturnData!D9/2000*TestInfo!$B$9,0) -> 88 | G9: 454 | H9: =IF(YieldAndReturnData!C9>0,ROUND(YieldAndReturnData!B9/(YieldAndReturnData!C9/100)*TestInfo!$B$11/100,0),0) -> 60 | I9: =ROUND(YieldAndReturnData!B9*TestInfo!$B$13,0) -> 81 | J9: 313
A10: =+HVIQualityData!A10 -> Variety 4 | B10: 671 | C10: 34.5 | D10: =ROUND(YieldAndReturnData!B10*TestInfo!$B$15,0) -> 947 | E10: =IF(HVIQualityData!Q10<1,0,ROUND(YieldAndReturnData!B10*HVIQualityData!Q10/100,0)) -> 364 | F10: =ROUND(YieldAndReturnData!D10/2000*TestInfo!$B$9,0) -> 88 | G10: 452 | H10: =IF(YieldAndReturnData!C10>0,ROUND(YieldAndReturnData!B10/(YieldAndReturnData!C10/100)*TestInfo!$B$11/100,0),0) -> 62 | I10: =ROUND(YieldAndReturnData!B10*TestInfo!$B$13,0) -> 81 | J10: 309
A11: =+HVIQualityData!A11 -> Variety 5 | B11: 670 | C11: 35.7 | D11: =ROUND(YieldAndReturnData!B11*TestInfo!$B$15,0) -> 946 | E11: =IF(HVIQualityData!Q11<1,0,ROUND(YieldAndReturnData!B11*HVIQualityData!Q11/100,0)) -> 364 | F11: =ROUND(YieldAndReturnData!D11/2000*TestInfo!$B$9,0) -> 88 | G11: 452 | H11: =IF(YieldAndReturnData!C11>0,ROUND(YieldAndReturnData!B11/(YieldAndReturnData!C11/100)*TestInfo!$B$11/100,0),0) -> 60 | I11: =ROUND(YieldAndReturnData!B11*TestInfo!$B$13,0) -> 80 | J11: 312
A12: =+HVIQualityData!A12 -> Variety 6 | B12: 654 | C12: 36.9 | D12: =ROUND(YieldAndReturnData!B12*TestInfo!$B$15,0) -> 923 | E12: =IF(HVIQualityData!Q12<1,0,ROUND(YieldAndReturnData!B12*HVIQualityData!Q12/100,0)) -> 326 | F12: =ROUND(YieldAndReturnData!D12/2000*TestInfo!$B$9,0) -> 85 | G12: 411 | H12: =IF(YieldAndReturnData!C12>0,ROUND(YieldAndReturnData!B12/(YieldAndReturnData!C12/100)*TestInfo!$B$11/100,0),0) -> 57 | I12: =ROUND(YieldAndReturnData!B12*TestInfo!$B$13,0) -> 78 | J12: 276
A13: =+HVIQualityData!A13 -> Variety 7 | B13: 653 | C13: 37.7 | D13: =ROUND(YieldAndReturnData!B13*TestInfo!$B$15,0) -> 922 | E13: =IF(HVIQualityData!Q13<1,0,ROUND(YieldAndReturnData!B13*HVIQualityData!Q13/100,0)) -> 297 | F13: =ROUND(YieldAndReturnData!D13/2000*TestInfo!$B$9,0) -> 85 | G13: 382 | H13: =IF(YieldAndReturnData!C13>0,ROUND(YieldAndReturnData!B13/(YieldAndReturnData!C13/100)*TestInfo!$B$11/100,0),0) -> 55 | I13: =ROUND(YieldAndReturnData!B13*TestInfo!$B$13,0) -> 78 | J13: 249
A14: =+HVIQualityData!A14 -> Variety 8 | B14: 644 | C14: 37.4 | D14: =ROUND(YieldAndReturnData!B14*TestInfo!$B$15,0) -> 909 | E14: =IF(HVIQualityData!Q14<1,0,ROUND(YieldAndReturnData!B14*HVIQualityData!Q14/100,0)) -> 301 | F14: =ROUND(YieldAndReturnData!D14/2000*TestInfo!$B$9,0) -> 84 | G14: 385 | H14: =IF(YieldAndReturnData!C14>0,ROUND(YieldAndReturnData!B14/(YieldAndReturnData!C14/100)*TestInfo!$B$11/100,0),0) -> 55 | I14: =ROUND(YieldAndReturnData!B14*TestInfo!$B$13,0) -> 77 | J14: 253
A15: =+HVIQualityData!A15 -> Variety 9 | B15: 635 | C15: 36.1 | D15: =ROUND(YieldAndReturnData!B15*TestInfo!$B$15,0) -> 897 | E15: =IF(HVIQualityData!Q15<1,0,ROUND(YieldAndReturnData!B15*HVIQualityData!Q15/100,0)) -> 313 | F15: =ROUND(YieldAndReturnData!D15/2000*TestInfo!$B$9,0) -> 83 | G15: 396 | H15: =IF(YieldAndReturnData!C15>0,ROUND(YieldAndReturnData!B15/(YieldAndReturnData!C15/100)*TestInfo!$B$11/100,0),0) -> 56 | I15: =ROUND(YieldAndReturnData!B15*TestInfo!$B$13,0) -> 76 | J15: 264
A16: =+HVIQualityData!A16 -> Variety 10 | B16: 644 | C16: 35.6 | D16: =ROUND(YieldAndReturnData!B16*TestInfo!$B$15,0) -> 909 | E16: =IF(HVIQualityData!Q16<1,0,ROUND(YieldAndReturnData!B16*HVIQualityData!Q16/100,0)) -> 307 | F16: =ROUND(YieldAndReturnData!D16/2000*TestInfo!$B$9,0) -> 84 | G16: 391 | H16: =IF(YieldAndReturnData!C16>0,ROUND(YieldAndReturnData!B16/(YieldAndReturnData!C16/100)*TestInfo!$B$11/100,0),0) -> 58 | I16: =ROUND(YieldAndReturnData!B16*TestInfo!$B$13,0) -> 77 | J16: 256
A17: =+HVIQualityData!A17 -> 0 | D17: =ROUND(YieldAndReturnData!B17*TestInfo!$B$15,0) -> 0 | E17: =IF(HVIQualityData!Q17<1,0,ROUND(YieldAndReturnData!B17*HVIQualityData!Q17/100,0)) -> 0 | F17: =ROUND(YieldAndReturnData!D17/2000*TestInfo!$B$9,0) -> 0 | G17: 0 | H17: =IF(YieldAndReturnData!C17>0,ROUND(YieldAndReturnData!B17/(YieldAndReturnData!C17/100)*TestInfo!$B$11/100,0),0) -> 0 | I17: =ROUND(YieldAndReturnData!B17*TestInfo!$B$13,0) -> 0 | J17: 0
A18: =+HVIQualityData!A18 -> 0 | D18: =ROUND(YieldAndReturnData!B18*TestInfo!$B$15,0) -> 0 | E18: =IF(HVIQualityData!Q18<1,0,ROUND(YieldAndReturnData!B18*HVIQualityData!Q18/100,0)) -> 0 | F18: =ROUND(YieldAndReturnData!D18/2000*TestInfo!$B$9,0) -> 0 | G18: 0 | H18: =IF(YieldAndReturnData!C18>0,ROUND(YieldAndReturnData!B18/(YieldAndReturnData!C18/100)*TestInfo!$B$11/100,0),0) -> 0 | I18: =ROUND(YieldAndReturnData!B18*TestInfo!$B$13,0) -> 0 | J18: 0
A19: =+HVIQualityData!A19 -> 0 | D19: =ROUND(YieldAndReturnData!B19*TestInfo!$B$15,0) -> 0 | E19: =IF(HVIQualityData!Q19<1,0,ROUND(YieldAndReturnData!B19*HVIQualityData!Q19/100,0)) -> 0 | F19: =ROUND(YieldAndReturnData!D19/2000*TestInfo!$B$9,0) -> 0 | G19: 0 | H19: =IF(YieldAndReturnData!C19>0,ROUND(YieldAndReturnData!B19/(YieldAndReturnData!C19/100)*TestInfo!$B$11/100,0),0) -> 0 | I19: =ROUND(YieldAndReturnData!B19*TestInfo!$B$13,0) -> 0 | J19: 0
A20: =+HVIQualityData!A20 -> 0 | D20: =ROUND(YieldAndReturnData!B20*TestInfo!$B$15,0) -> 0 | E20: =IF(HVIQualityData!Q20<1,0,ROUND(YieldAndReturnData!B20*HVIQualityData!Q20/100,0)) -> 0 | F20: =ROUND(YieldAndReturnData!D20/2000*TestInfo!$B$9,0) -> 0 | G20: 0 | H20: =IF(YieldAndReturnData!C20>0,ROUND(YieldAndReturnData!B20/(YieldAndReturnData!C20/100)*TestInfo!$B$11/100,0),0) -> 0 | I20: =ROUND(YieldAndReturnData!B20*TestInfo!$B$13,0) -> 0 | J20: 0
A21: =+HVIQualityData!A21 -> 0 | D21: =ROUND(YieldAndReturnData!B21*TestInfo!$B$15,0) -> 0 | E21: =IF(HVIQualityData!Q21<1,0,ROUND(YieldAndReturnData!B21*HVIQualityData!Q21/100,0)) -> 0 | F21: =ROUND(YieldAndReturnData!D21/2000*TestInfo!$B$9,0) -> 0 | G21: 0 | H21: =IF(YieldAndReturnData!C21>0,ROUND(YieldAndReturnData!B21/(YieldAndReturnData!C21/100)*TestInfo!$B$11/100,0),0) -> 0 | I21: =ROUND(YieldAndReturnData!B21*TestInfo!$B$13,0) -> 0 | J21: 0
A22: =+HVIQualityData!A22 -> 0 | D22: =ROUND(YieldAndReturnData!B22*TestInfo!$B$15,0) -> 0 | E22: =IF(HVIQualityData!Q22<1,0,ROUND(YieldAndReturnData!B22*HVIQualityData!Q22/100,0)) -> 0 | F22: =ROUND(YieldAndReturnData!D22/2000*TestInfo!$B$9,0) -> 0 | G22: 0 | H22: =IF(YieldAndReturnData!C22>0,ROUND(YieldAndReturnData!B22/(YieldAndReturnData!C22/100)*TestInfo!$B$11/100,0),0) -> 0 | I22: =ROUND(YieldAndReturnData!B22*TestInfo!$B$13,0) -> 0 | J22: 0
A23: =+HVIQualityData!A23 -> 0 | D23: =ROUND(YieldAndReturnData!B23*TestInfo!$B$15,0) -> 0 | E23: =IF(HVIQualityData!Q23<1,0,ROUND(YieldAndReturnData!B23*HVIQualityData!Q23/100,0)) -> 0 | F23: =ROUND(YieldAndReturnData!D23/2000*TestInfo!$B$9,0) -> 0 | G23: 0 | H23: =IF(YieldAndReturnData!C23>0,ROUND(YieldAndReturnData!B23/(YieldAndReturnData!C23/100)*TestInfo!$B$11/100,0),0) -> 0 | I23: =ROUND(YieldAndReturnData!B23*TestInfo!$B$13,0) -> 0 | J23: 0
A24: =+HVIQualityData!A24 -> 0 | D24: =ROUND(YieldAndReturnData!B24*TestInfo!$B$15,0) -> 0 | E24: =IF(HVIQualityData!Q24<1,0,ROUND(YieldAndReturnData!B24*HVIQualityData!Q24/100,0)) -> 0 | F24: =ROUND(YieldAndReturnData!D24/2000*TestInfo!$B$9,0) -> 0 | G24: 0 | H24: =IF(YieldAndReturnData!C24>0,ROUND(YieldAndReturnData!B24/(YieldAndReturnData!C24/100)*TestInfo!$B$11/100,0),0) -> 0 | I24: =ROUND(YieldAndReturnData!B24*TestInfo!$B$13,0) -> 0 | J24: 0
A25: =+HVIQualityData!A25 -> 0 | D25: =ROUND(YieldAndReturnData!B25*TestInfo!$B$15,0) -> 0 | E25: =IF(HVIQualityData!Q25<1,0,ROUND(YieldAndReturnData!B25*HVIQualityData!Q25/100,0)) -> 0 | F25: =ROUND(YieldAndReturnData!D25/2000*TestInfo!$B$9,0) -> 0 | G25: 0 | H25: =IF(YieldAndReturnData!C25>0,ROUND(YieldAndReturnData!B25/(YieldAndReturnData!C25/100)*TestInfo!$B$11/100,0),0) -> 0 | I25: =ROUND(YieldAndReturnData!B25*TestInfo!$B$13,0) -> 0 | J25: 0
A26: =+HVIQualityData!A26 -> 0 | D26: =ROUND(YieldAndReturnData!B26*TestInfo!$B$15,0) -> 0 | E26: =IF(HVIQualityData!Q26<1,0,ROUND(YieldAndReturnData!B26*HVIQualityData!Q26/100,0)) -> 0 | F26: =ROUND(YieldAndReturnData!D26/2000*TestInfo!$B$9,0) -> 0 | G26: 0 | H26: =IF(YieldAndReturnData!C26>0,ROUND(YieldAndReturnData!B26/(YieldAndReturnData!C26/100)*TestInfo!$B$11/100,0),0) -> 0 | I26: =ROUND(YieldAndReturnData!B26*TestInfo!$B$13,0) -> 0 | J26: 0
A27: =+HVIQualityData!A27 -> 0 | D27: =ROUND(YieldAndReturnData!B27*TestInfo!$B$15,0) -> 0 | E27: =IF(HVIQualityData!Q27<1,0,ROUND(YieldAndReturnData!B27*HVIQualityData!Q27/100,0)) -> 0 | F27: =ROUND(YieldAndReturnData!D27/2000*TestInfo!$B$9,0) -> 0 | G27: 0 | H27: =IF(YieldAndReturnData!C27>0,ROUND(YieldAndReturnData!B27/(YieldAndReturnData!C27/100)*TestInfo!$B$11/100,0),0) -> 0 | I27: =ROUND(YieldAndReturnData!B27*TestInfo!$B$13,0) -> 0 | J27: 0
A28: =+HVIQualityData!A28 -> 0 | D28: =ROUND(YieldAndReturnData!B28*TestInfo!$B$15,0) -> 0 | E28: =IF(HVIQualityData!Q28<1,0,ROUND(YieldAndReturnData!B28*HVIQualityData!Q28/100,0)) -> 0 | F28: =ROUND(YieldAndReturnData!D28/2000*TestInfo!$B$9,0) -> 0 | G28: 0 | H28: =IF(YieldAndReturnData!C28>0,ROUND(YieldAndReturnData!B28/(YieldAndReturnData!C28/100)*TestInfo!$B$11/100,0),0) -> 0 | I28: =ROUND(YieldAndReturnData!B28*TestInfo!$B$13,0) -> 0 | J28: 0
A29: =+HVIQualityData!A29 -> 0 | D29: =ROUND(YieldAndReturnData!B29*TestInfo!$B$15,0) -> 0 | E29: =IF(HVIQualityData!Q29<1,0,ROUND(YieldAndReturnData!B29*HVIQualityData!Q29/100,0)) -> 0 | F29: =ROUND(YieldAndReturnData!D29/2000*TestInfo!$B$9,0) -> 0 | G29: 0 | H29: =IF(YieldAndReturnData!C29>0,ROUND(YieldAndReturnData!B29/(YieldAndReturnData!C29/100)*TestInfo!$B$11/100,0),0) -> 0 | I29: =ROUND(YieldAndReturnData!B29*TestInfo!$B$13,0) -> 0 | J29: 0
A30: =+HVIQualityData!A30 -> 0 | D30: =ROUND(YieldAndReturnData!B30*TestInfo!$B$15,0) -> 0 | E30: =IF(HVIQualityData!Q30<1,0,ROUND(YieldAndReturnData!B30*HVIQualityData!Q30/100,0)) -> 0 | F30: =ROUND(YieldAndReturnData!D30/2000*TestInfo!$B$9,0) -> 0 | G30: 0 | H30: =IF(YieldAndReturnData!C30>0,ROUND(YieldAndReturnData!B30/(YieldAndReturnData!C30/100)*TestInfo!$B$11/100,0),0) -> 0 | I30: =ROUND(YieldAndReturnData!B30*TestInfo!$B$13,0) -> 0 | J30: 0
A31: =+HVIQualityData!A31 -> 0 | D31: =ROUND(YieldAndReturnData!B31*TestInfo!$B$15,0) -> 0 | E31: =IF(HVIQualityData!Q31<1,0,ROUND(YieldAndReturnData!B31*HVIQualityData!Q31/100,0)) -> 0 | F31: =ROUND(YieldAndReturnData!D31/2000*TestInfo!$B$9,0) -> 0 | G31: 0 | H31: =IF(YieldAndReturnData!C31>0,ROUND(YieldAndReturnData!B31/(YieldAndReturnData!C31/100)*TestInfo!$B$11/100,0),0) -> 0 | I31: =ROUND(YieldAndReturnData!B31*TestInfo!$B$13,0) -> 0 | J31: 0
A32: =+HVIQualityData!A32 -> 0 | D32: =ROUND(YieldAndReturnData!B32*TestInfo!$B$15,0) -> 0 | E32: =IF(HVIQualityData!Q32<1,0,ROUND(YieldAndReturnData!B32*HVIQualityData!Q32/100,0)) -> 0 | F32: =ROUND(YieldAndReturnData!D32/2000*TestInfo!$B$9,0) -> 0 | G32: 0 | H32: =IF(YieldAndReturnData!C32>0,ROUND(YieldAndReturnData!B32/(YieldAndReturnData!C32/100)*TestInfo!$B$11/100,0),0) -> 0 | I32: =ROUND(YieldAndReturnData!B32*TestInfo!$B$13,0) -> 0 | J32: 0
A33: =+HVIQualityData!A33 -> 0 | D33: =ROUND(YieldAndReturnData!B33*TestInfo!$B$15,0) -> 0 | E33: =IF(HVIQualityData!Q33<1,0,ROUND(YieldAndReturnData!B33*HVIQualityData!Q33/100,0)) -> 0 | F33: =ROUND(YieldAndReturnData!D33/2000*TestInfo!$B$9,0) -> 0 | G33: 0 | H33: =IF(YieldAndReturnData!C33>0,ROUND(YieldAndReturnData!B33/(YieldAndReturnData!C33/100)*TestInfo!$B$11/100,0),0) -> 0 | I33: =ROUND(YieldAndReturnData!B33*TestInfo!$B$13,0) -> 0 | J33: 0
A34: =+HVIQualityData!A34 -> 0 | D34: =ROUND(YieldAndReturnData!B34*TestInfo!$B$15,0) -> 0 | E34: =IF(HVIQualityData!Q34<1,0,ROUND(YieldAndReturnData!B34*HVIQualityData!Q34/100,0)) -> 0 | F34: =ROUND(YieldAndReturnData!D34/2000*TestInfo!$B$9,0) -> 0 | G34: 0 | H34: =IF(YieldAndReturnData!C34>0,ROUND(YieldAndReturnData!B34/(YieldAndReturnData!C34/100)*TestInfo!$B$11/100,0),0) -> 0 | I34: =ROUND(YieldAndReturnData!B34*TestInfo!$B$13,0) -> 0 | J34: 0
A35: =+HVIQualityData!A35 -> 0 | D35: =ROUND(YieldAndReturnData!B35*TestInfo!$B$15,0) -> 0 | E35: =IF(HVIQualityData!Q35<1,0,ROUND(YieldAndReturnData!B35*HVIQualityData!Q35/100,0)) -> 0 | F35: =ROUND(YieldAndReturnData!D35/2000*TestInfo!$B$9,0) -> 0 | G35: 0 | H35: =IF(YieldAndReturnData!C35>0,ROUND(YieldAndReturnData!B35/(YieldAndReturnData!C35/100)*TestInfo!$B$11/100,0),0) -> 0 | I35: =ROUND(YieldAndReturnData!B35*TestInfo!$B$13,0) -> 0 | J35: 0
A36: =+HVIQualityData!A36 -> 0 | D36: =ROUND(YieldAndReturnData!B36*TestInfo!$B$15,0) -> 0 | E36: =IF(HVIQualityData!Q36<1,0,ROUND(YieldAndReturnData!B36*HVIQualityData!Q36/100,0)) -> 0 | F36: =ROUND(YieldAndReturnData!D36/2000*TestInfo!$B$9,0) -> 0 | G36: 0 | H36: =IF(YieldAndReturnData!C36>0,ROUND(YieldAndReturnData!B36/(YieldAndReturnData!C36/100)*TestInfo!$B$11/100,0),0) -> 0 | I36: =ROUND(YieldAndReturnData!B36*TestInfo!$B$13,0) -> 0 | J36: 0
A37: =+HVIQualityData!A37 -> 0 | D37: =ROUND(YieldAndReturnData!B37*TestInfo!$B$15,0) -> 0 | E37: =IF(HVIQualityData!Q37<1,0,ROUND(YieldAndReturnData!B37*HVIQualityData!Q37/100,0)) -> 0 | F37: =ROUND(YieldAndReturnData!D37/2000*TestInfo!$B$9,0) -> 0 | G37: 0 | H37: =IF(YieldAndReturnData!C37>0,ROUND(YieldAndReturnData!B37/(YieldAndReturnData!C37/100)*TestInfo!$B$11/100,0),0) -> 0 | I37: =ROUND(YieldAndReturnData!B37*TestInfo!$B$13,0) -> 0 | J37: 0
A38: =+HVIQualityData!A38 -> 0 | D38: =ROUND(YieldAndReturnData!B38*TestInfo!$B$15,0) -> 0 | E38: =IF(HVIQualityData!Q38<1,0,ROUND(YieldAndReturnData!B38*HVIQualityData!Q38/100,0)) -> 0 | F38: =ROUND(YieldAndReturnData!D38/2000*TestInfo!$B$9,0) -> 0 | G38: 0 | H38: =IF(YieldAndReturnData!C38>0,ROUND(YieldAndReturnData!B38/(YieldAndReturnData!C38/100)*TestInfo!$B$11/100,0),0) -> 0 | I38: =ROUND(YieldAndReturnData!B38*TestInfo!$B$13,0) -> 0 | J38: 0
A39: =+HVIQualityData!A39 -> 0 | D39: =ROUND(YieldAndReturnData!B39*TestInfo!$B$15,0) -> 0 | E39: =IF(HVIQualityData!Q39<1,0,ROUND(YieldAndReturnData!B39*HVIQualityData!Q39/100,0)) -> 0 | F39: =ROUND(YieldAndReturnData!D39/2000*TestInfo!$B$9,0) -> 0 | G39: =E39+F39 -> 0 | H39: =IF(YieldAndReturnData!C39>0,ROUND(YieldAndReturnData!B39/(YieldAndReturnData!C39/100)*TestInfo!$B$11/100,0),0) -> 0 | I39: =ROUND(YieldAndReturnData!B39*TestInfo!$B$13,0) -> 0 | J39: =G39-H39-I39 -> 0
A40: =+HVIQualityData!A40 -> 0 | D40: =ROUND(YieldAndReturnData!B40*TestInfo!$B$15,0) -> 0 | E40: =IF(HVIQualityData!Q40<1,0,ROUND(YieldAndReturnData!B40*HVIQualityData!Q40/100,0)) -> 0 | F40: =ROUND(YieldAndReturnData!D40/2000*TestInfo!$B$9,0) -> 0 | G40: 0 | H40: =IF(YieldAndReturnData!C40>0,ROUND(YieldAndReturnData!B40/(YieldAndReturnData!C40/100)*TestInfo!$B$11/100,0),0) -> 0 | I40: =ROUND(YieldAndReturnData!B40*TestInfo!$B$13,0) -> 0 | J40: 0
A41: =+HVIQualityData!A41 -> 0 | D41: =ROUND(YieldAndReturnData!B41*TestInfo!$B$15,0) -> 0 | E41: =IF(HVIQualityData!Q41<1,0,ROUND(YieldAndReturnData!B41*HVIQualityData!Q41/100,0)) -> 0 | F41: =ROUND(YieldAndReturnData!D41/2000*TestInfo!$B$9,0) -> 0 | G41: 0 | H41: =IF(YieldAndReturnData!C41>0,ROUND(YieldAndReturnData!B41/(YieldAndReturnData!C41/100)*TestInfo!$B$11/100,0),0) -> 0 | I41: =ROUND(YieldAndReturnData!B41*TestInfo!$B$13,0) -> 0 | J41: 0
A42: =+HVIQualityData!A42 -> 0 | D42: =ROUND(YieldAndReturnData!B42*TestInfo!$B$15,0) -> 0 | E42: =IF(HVIQualityData!Q42<1,0,ROUND(YieldAndReturnData!B42*HVIQualityData!Q42/100,0)) -> 0 | F42: =ROUND(YieldAndReturnData!D42/2000*TestInfo!$B$9,0) -> 0 | G42: 0 | H42: =IF(YieldAndReturnData!C42>0,ROUND(YieldAndReturnData!B42/(YieldAndReturnData!C42/100)*TestInfo!$B$11/100,0),0) -> 0 | I42: =ROUND(YieldAndReturnData!B42*TestInfo!$B$13,0) -> 0 | J42: 0
A43: =+HVIQualityData!A43 -> 0 | D43: =ROUND(YieldAndReturnData!B43*TestInfo!$B$15,0) -> 0 | E43: =IF(HVIQualityData!Q43<1,0,ROUND(YieldAndReturnData!B43*HVIQualityData!Q43/100,0)) -> 0 | F43: =ROUND(YieldAndReturnData!D43/2000*TestInfo!$B$9,0) -> 0 | G43: 0 | H43: =IF(YieldAndReturnData!C43>0,ROUND(YieldAndReturnData!B43/(YieldAndReturnData!C43/100)*TestInfo!$B$11/100,0),0) -> 0 | I43: =ROUND(YieldAndReturnData!B43*TestInfo!$B$13,0) -> 0 | J43: 0
A44: =+HVIQualityData!A44 -> 0 | D44: =ROUND(YieldAndReturnData!B44*TestInfo!$B$15,0) -> 0 | E44: =IF(HVIQualityData!Q44<1,0,ROUND(YieldAndReturnData!B44*HVIQualityData!Q44/100,0)) -> 0 | F44: =ROUND(YieldAndReturnData!D44/2000*TestInfo!$B$9,0) -> 0 | G44: 0 | H44: =IF(YieldAndReturnData!C44>0,ROUND(YieldAndReturnData!B44/(YieldAndReturnData!C44/100)*TestInfo!$B$11/100,0),0) -> 0 | I44: =ROUND(YieldAndReturnData!B44*TestInfo!$B$13,0) -> 0 | J44: 0
A45: =+HVIQualityData!A45 -> 0 | D45: =ROUND(YieldAndReturnData!B45*TestInfo!$B$15,0) -> 0 | E45: =IF(HVIQualityData!Q45<1,0,ROUND(YieldAndReturnData!B45*HVIQualityData!Q45/100,0)) -> 0 | F45: =ROUND(YieldAndReturnData!D45/2000*TestInfo!$B$9,0) -> 0 | G45: 0 | H45: =IF(YieldAndReturnData!C45>0,ROUND(YieldAndReturnData!B45/(YieldAndReturnData!C45/100)*TestInfo!$B$11/100,0),0) -> 0 | I45: =ROUND(YieldAndReturnData!B45*TestInfo!$B$13,0) -> 0 | J45: 0
A46: =+HVIQualityData!A46 -> 0 | D46: =ROUND(YieldAndReturnData!B46*TestInfo!$B$15,0) -> 0 | E46: =IF(HVIQualityData!Q46<1,0,ROUND(YieldAndReturnData!B46*HVIQualityData!Q46/100,0)) -> 0 | F46: =ROUND(YieldAndReturnData!D46/2000*TestInfo!$B$9,0) -> 0 | G46: 0 | H46: =IF(YieldAndReturnData!C46>0,ROUND(YieldAndReturnData!B46/(YieldAndReturnData!C46/100)*TestInfo!$B$11/100,0),0) -> 0 | I46: =ROUND(YieldAndReturnData!B46*TestInfo!$B$13,0) -> 0 | J46: 0
A47: =+HVIQualityData!A47 -> 0 | D47: =ROUND(YieldAndReturnData!B47*TestInfo!$B$15,0) -> 0 | E47: =IF(HVIQualityData!Q47<1,0,ROUND(YieldAndReturnData!B47*HVIQualityData!Q47/100,0)) -> 0 | F47: =ROUND(YieldAndReturnData!D47/2000*TestInfo!$B$9,0) -> 0 | G47: 0 | H47: =IF(YieldAndReturnData!C47>0,ROUND(YieldAndReturnData!B47/(YieldAndReturnData!C47/100)*TestInfo!$B$11/100,0),0) -> 0 | I47: =ROUND(YieldAndReturnData!B47*TestInfo!$B$13,0) -> 0 | J47: 0
A48: =+HVIQualityData!A48 -> 0 | D48: =ROUND(YieldAndReturnData!B48*TestInfo!$B$15,0) -> 0 | E48: =IF(HVIQualityData!Q48<1,0,ROUND(YieldAndReturnData!B48*HVIQualityData!Q48/100,0)) -> 0 | F48: =ROUND(YieldAndReturnData!D48/2000*TestInfo!$B$9,0) -> 0 | G48: 0 | H48: =IF(YieldAndReturnData!C48>0,ROUND(YieldAndReturnData!B48/(YieldAndReturnData!C48/100)*TestInfo!$B$11/100,0),0) -> 0 | I48: =ROUND(YieldAndReturnData!B48*TestInfo!$B$13,0) -> 0 | J48: 0
A49: =+HVIQualityData!A49 -> 0 | D49: =ROUND(YieldAndReturnData!B49*TestInfo!$B$15,0) -> 0 | E49: =IF(HVIQualityData!Q49<1,0,ROUND(YieldAndReturnData!B49*HVIQualityData!Q49/100,0)) -> 0 | F49: =ROUND(YieldAndReturnData!D49/2000*TestInfo!$B$9,0) -> 0 | G49: 0 | H49: =IF(YieldAndReturnData!C49>0,ROUND(YieldAndReturnData!B49/(YieldAndReturnData!C49/100)*TestInfo!$B$11/100,0),0) -> 0 | I49: =ROUND(YieldAndReturnData!B49*TestInfo!$B$13,0) -> 0 | J49: 0
A50: =+HVIQualityData!A50 -> 0 | D50: =ROUND(YieldAndReturnData!B50*TestInfo!$B$15,0) -> 0 | E50: =IF(HVIQualityData!Q50<1,0,ROUND(YieldAndReturnData!B50*HVIQualityData!Q50/100,0)) -> 0 | F50: =ROUND(YieldAndReturnData!D50/2000*TestInfo!$B$9,0) -> 0 | G50: 0 | H50: =IF(YieldAndReturnData!C50>0,ROUND(YieldAndReturnData!B50/(YieldAndReturnData!C50/100)*TestInfo!$B$11/100,0),0) -> 0 | I50: =ROUND(YieldAndReturnData!B50*TestInfo!$B$13,0) -> 0 | J50: 0
A51: =+HVIQualityData!A51 -> 0 | D51: =ROUND(YieldAndReturnData!B51*TestInfo!$B$15,0) -> 0 | E51: =IF(HVIQualityData!Q51<1,0,ROUND(YieldAndReturnData!B51*HVIQualityData!Q51/100,0)) -> 0 | F51: =ROUND(YieldAndReturnData!D51/2000*TestInfo!$B$9,0) -> 0 | G51: 0 | H51: =IF(YieldAndReturnData!C51>0,ROUND(YieldAndReturnData!B51/(YieldAndReturnData!C51/100)*TestInfo!$B$11/100,0),0) -> 0 | I51: =ROUND(YieldAndReturnData!B51*TestInfo!$B$13,0) -> 0 | J51: 0
A52: =+HVIQualityData!A52 -> 0 | D52: =ROUND(YieldAndReturnData!B52*TestInfo!$B$15,0) -> 0 | E52: =IF(HVIQualityData!Q52<1,0,ROUND(YieldAndReturnData!B52*HVIQualityData!Q52/100,0)) -> 0 | F52: =ROUND(YieldAndReturnData!D52/2000*TestInfo!$B$9,0) -> 0 | G52: 0 | H52: =IF(YieldAndReturnData!C52>0,ROUND(YieldAndReturnData!B52/(YieldAndReturnData!C52/100)*TestInfo!$B$11/100,0),0) -> 0 | I52: =ROUND(YieldAndReturnData!B52*TestInfo!$B$13,0) -> 0 | J52: 0
A53: =+HVIQualityData!A53 -> 0 | D53: =ROUND(YieldAndReturnData!B53*TestInfo!$B$15,0) -> 0 | E53: =IF(HVIQualityData!Q53<1,0,ROUND(YieldAndReturnData!B53*HVIQualityData!Q53/100,0)) -> 0 | F53: =ROUND(YieldAndReturnData!D53/2000*TestInfo!$B$9,0) -> 0 | G53: 0 | H53: =IF(YieldAndReturnData!C53>0,ROUND(YieldAndReturnData!B53/(YieldAndReturnData!C53/100)*TestInfo!$B$11/100,0),0) -> 0 | I53: =ROUND(YieldAndReturnData!B53*TestInfo!$B$13,0) -> 0 | J53: 0
A54: =+HVIQualityData!A54 -> 0 | D54: =ROUND(YieldAndReturnData!B54*TestInfo!$B$15,0) -> 0 | E54: =IF(HVIQualityData!Q54<1,0,ROUND(YieldAndReturnData!B54*HVIQualityData!Q54/100,0)) -> 0 | F54: =ROUND(YieldAndReturnData!D54/2000*TestInfo!$B$9,0) -> 0 | G54: 0 | H54: =IF(YieldAndReturnData!C54>0,ROUND(YieldAndReturnData!B54/(YieldAndReturnData!C54/100)*TestInfo!$B$11/100,0),0) -> 0 | I54: =ROUND(YieldAndReturnData!B54*TestInfo!$B$13,0) -> 0 | J54: 0
A55: =+HVIQualityData!A55 -> 0 | D55: =ROUND(YieldAndReturnData!B55*TestInfo!$B$15,0) -> 0 | E55: =IF(HVIQualityData!Q55<1,0,ROUND(YieldAndReturnData!B55*HVIQualityData!Q55/100,0)) -> 0 | F55: =ROUND(YieldAndReturnData!D55/2000*TestInfo!$B$9,0) -> 0 | G55: 0 | H55: =IF(YieldAndReturnData!C55>0,ROUND(YieldAndReturnData!B55/(YieldAndReturnData!C55/100)*TestInfo!$B$11/100,0),0) -> 0 | I55: =ROUND(YieldAndReturnData!B55*TestInfo!$B$13,0) -> 0 | J55: 0
A56: =+HVIQualityData!A56 -> 0 | D56: =ROUND(YieldAndReturnData!B56*TestInfo!$B$15,0) -> 0 | E56: =IF(HVIQualityData!Q56<1,0,ROUND(YieldAndReturnData!B56*HVIQualityData!Q56/100,0)) -> 0 | F56: =ROUND(YieldAndReturnData!D56/2000*TestInfo!$B$9,0) -> 0 | G56: 0 | H56: =IF(YieldAndReturnData!C56>0,ROUND(YieldAndReturnData!B56/(YieldAndReturnData!C56/100)*TestInfo!$B$11/100,0),0) -> 0 | I56: =ROUND(YieldAndReturnData!B56*TestInfo!$B$13,0) -> 0 | J56: 0
A57: =+HVIQualityData!A57 -> 0 | D57: =ROUND(YieldAndReturnData!B57*TestInfo!$B$15,0) -> 0 | E57: =IF(HVIQualityData!Q57<1,0,ROUND(YieldAndReturnData!B57*HVIQualityData!Q57/100,0)) -> 0 | F57: =ROUND(YieldAndReturnData!D57/2000*TestInfo!$B$9,0) -> 0 | G57: 0 | H57: =IF(YieldAndReturnData!C57>0,ROUND(YieldAndReturnData!B57/(YieldAndReturnData!C57/100)*TestInfo!$B$11/100,0),0) -> 0 | I57: =ROUND(YieldAndReturnData!B57*TestInfo!$B$13,0) -> 0 | J57: 0
A58: =+HVIQualityData!A58 -> 0 | D58: =ROUND(YieldAndReturnData!B58*TestInfo!$B$15,0) -> 0 | E58: =IF(HVIQualityData!Q58<1,0,ROUND(YieldAndReturnData!B58*HVIQualityData!Q58/100,0)) -> 0 | F58: =ROUND(YieldAndReturnData!D58/2000*TestInfo!$B$9,0) -> 0 | G58: 0 | H58: =IF(YieldAndReturnData!C58>0,ROUND(YieldAndReturnData!B58/(YieldAndReturnData!C58/100)*TestInfo!$B$11/100,0),0) -> 0 | I58: =ROUND(YieldAndReturnData!B58*TestInfo!$B$13,0) -> 0 | J58: 0
A59: =+HVIQualityData!A59 -> 0 | D59: =ROUND(YieldAndReturnData!B59*TestInfo!$B$15,0) -> 0 | E59: =IF(HVIQualityData!Q59<1,0,ROUND(YieldAndReturnData!B59*HVIQualityData!Q59/100,0)) -> 0 | F59: =ROUND(YieldAndReturnData!D59/2000*TestInfo!$B$9,0) -> 0 | G59: 0 | H59: =IF(YieldAndReturnData!C59>0,ROUND(YieldAndReturnData!B59/(YieldAndReturnData!C59/100)*TestInfo!$B$11/100,0),0) -> 0 | I59: =ROUND(YieldAndReturnData!B59*TestInfo!$B$13,0) -> 0 | J59: 0

Sheet LoanValueGraphs
D37: ="Price per Pound at "&BASE&" Cent Base and CCC Premiums and Discounts" -> Price per Pound at 52 Cent Base and CCC Premiums and Discounts
D38: ="Lint Value in Dollars per Acre at "&BASE&" Cent Base and CCC Premiums and Discounts" -> Lint Value in Dollars per Acre at 52 Cent Base and CCC Premiums and Discounts
D39: ="$ per Acre Net of Harvest & Ginning @ "&BASE&" Cent Base w/CCC Premiums and Discounts & $"&SEEDPRICE&" /Ton Seed" -> $ per Acre Net of Harvest & Ginning @ 52 Cent Base w/CCC Premiums and Discounts & $185 /Ton Seed

Sheet B (hidden)
A1: Variety Test | O1: startval
A2: Row width (Inches) | O2: endval
A3: Company | O3: twochk | P3: =ROUND((P1+P2)/2,0) -> 0
A4: Check Variety
I5: Plot | J5: Plot Yield | K5: Two
E6: Row | F6: Sample | G6: Percent | H6: Turnout | I6: Size | J6: Per | K6: Check | L6: Adjustment | M6: Adjusted
A7: Plot # | B7: Company | C7: Variety | D7: Rows | E7: Length (ft) | F7: Weight | G7: Turnout | H7: Adjustment | I7: Factor | J7: Acre | K7: Average | L7: Factor | M7: Yield
A8: 1 | I8: =IF(D8<1,0,(D8*E8*($C$2/12)/43560)) -> 0 | J8: =IF(D8<1,0,ROUND((F8/I8/100*(G8-H8)),0)) -> 0 | R8: =G8-H8 -> 0 | AK8: =IF(B8="Check",J8,0) -> 0 | AL8: =IF(D8>0,IF(B8="Check",1,0),0) -> 0
A9: 2 | I9: 0 | J9: 0 | K9: =IF(B9="Check",0,P9) -> 0 | L9: =IF(B9="Check",0,ROUND(J9/K9,4)) -> 0 | M9: +@IF(B9<>"Check",@ROUND($CHECK_AVG*L9,0),0) | R9: 0
A10: 3 | I10: 0 | J10: 0 | K10: 0 | L10: 0 | M10: +@IF(B10<>"Check",@ROUND($CHECK_AVG*L10,0),0) | R10: 0
A11: 4 | I11: 0 | J11: 0 | K11: 0 | L11: 0 | M11: +@IF(B11<>"Check",@ROUND($CHECK_AVG*L11,0),0) | R11: 0
A12: 5 | I12: 0 | J12: 0 | K12: 0 | L12: 0 | M12: +@IF(B12<>"Check",@ROUND($CHECK_AVG*L12,0),0) | R12: 0
A13: 6 | I13: 0 | J13: 0 | K13: 0 | L13: 0 | M13: +@IF(B13<>"Check",@ROUND($CHECK_AVG*L13,0),0) | R13: 0
A14: 7 | I14: 0 | J14: 0 | K14: 0 | L14: 0 | M14: +@IF(B14<>"Check",@ROUND($CHECK_AVG*L14,0),0) | R14: 0
A15: 8 | I15: 0 | J15: 0 | K15: 0 | L15: 0 | M15: +@IF(B15<>"Check",@ROUND($CHECK_AVG*L15,0),0) | R15: 0
A16: 9 | I16: 0 | J16: 0 | K16: 0 | L16: 0 | M16: +@IF(B16<>"Check",@ROUND($CHECK_AVG*L16,0),0) | R16: 0
A17: 10 | I17: 0 | J17: 0 | K17: 0 | L17: 0 | M17: +@IF(B17<>"Check",@ROUND($CHECK_AVG*L17,0),0) | R17: 0
A18: 11 | I18: 0 | J18: 0 | K18: 0 | L18: 0 | M18: +@IF(B18<>"Check",@ROUND($CHECK_AVG*L18,0),0) | R18: 0
A19: 12 | I19: 0 | J19: 0 | K19: 0 | L19: 0 | M19: +@IF(B19<>"Check",@ROUND($CHECK_AVG*L19,0),0) | R19: 0
A20: 13 | I20: 0 | J20: 0 | K20: 0 | L20: 0 | M20: +@IF(B20<>"Check",@ROUND($CHECK_AVG*L20,0),0) | R20: 0
A21: 14 | I21: 0 | J21: 0 | K21: 0 | L21: 0 | M21: +@IF(B21<>"Check",@ROUND($CHECK_AVG*L21,0),0) | R21: 0
A22: 15 | I22: 0 | J22: 0 | K22: 0 | L22: 0 | M22: +@IF(B22<>"Check",@ROUND($CHECK_AVG*L22,0),0) | R22: 0
A23: 16 | I23: 0 | J23: 0 | K23: 0 | L23: 0 | M23: +@IF(B23<>"Check",@ROUND($CHECK_AVG*L23,0),0) | R23: 0
A24: 17 | I24: 0 | J24: 0 | K24: 0 | L24: 0 | M24: +@IF(B24<>"Check",@ROUND($CHECK_AVG*L24,0),0) | R24: 0
A25: 18 | I25: 0 | J25: 0 | K25: 0 | L25: 0 | M25: +@IF(B25<>"Check",@ROUND($CHECK_AVG*L25,0),0) | R25: 0
A26: 19 | I26: 0 | J26: 0 | K26: 0 | L26: 0 | M26: +@IF(B26<>"Check",@ROUND($CHECK_AVG*L26,0),0) | R26: 0
A27: 20 | I27: 0 | J27: 0 | K27: 0 | L27: 0 | M27: +@IF(B27<>"Check",@ROUND($CHECK_AVG*L27,0),0) | R27: 0
A28: 21 | I28: 0 | J28: 0 | K28: 0 | L28: 0 | M28: +@IF(B28<>"Check",@ROUND($CHECK_AVG*L28,0),0) | R28: 0
A29: 22 | I29: 0 | J29: 0 | K29: 0 | L29: 0 | M29: +@IF(B29<>"Check",@ROUND($CHECK_AVG*L29,0),0) | R29: 0
A30: 23 | I30: 0 | J30: 0 | K30: 0 | L30: 0 | M30: +@IF(B30<>"Check",@ROUND($CHECK_AVG*L30,0),0) | R30: 0
A31: 24 | I31: 0 | J31: 0 | K31: 0 | L31: 0 | M31: +@IF(B31<>"Check",@ROUND($CHECK_AVG*L31,0),0) | R31: 0
A32: 25 | I32: 0 | J32: 0 | K32: 0 | L32: 0 | M32: +@IF(B32<>"Check",@ROUND($CHECK_AVG*L32,0),0) | R32: 0
A33: 26 | I33: 0 | J33: 0 | K33: 0 | L33: 0 | M33: +@IF(B33<>"Check",@ROUND($CHECK_AVG*L33,0),0) | R33: 0
A34: 27 | I34: 0 | J34: 0 | K34: 0 | L34: 0 | M34: +@IF(B34<>"Check",@ROUND($CHECK_AVG*L34,0),0) | R34: 0
A35: 28 | I35: 0 | J35: 0 | K35: 0 | L35: 0 | M35: +@IF(B35<>"Check",@ROUND($CHECK_AVG*L35,0),0) | R35: 0
A36: 29 | I36: 0 | J36: 0 | K36: 0 | L36: 0 | M36: +@IF(B36<>"Check",@ROUND($CHECK_AVG*L36,0),0) | R36: 0
A37: 30 | I37: 0 | J37: 0 | K37: 0 | L37: 0 | M37: +@IF(B37<>"Check",@ROUND($CHECK_AVG*L37,0),0) | R37: 0
A38: 31 | I38: 0 | J38: 0 | K38: 0 | L38: 0 | M38: +@IF(B38<>"Check",@ROUND($CHECK_AVG*L38,0),0) | R38: 0
A39: 32 | I39: 0 | J39: 0 | K39: 0 | L39: 0 | M39: +@IF(B39<>"Check",@ROUND($CHECK_AVG*L39,0),0) | R39: 0
A40: 33 | I40: =IF(D40<1,0,(D40*E40*($C$2/12)/43560)) -> 0 | J40: =IF(D40<1,0,ROUND((F40/I40/100*(G40-H40)),0)) -> 0 | K40: 0 | L40: 0 | M40: +@IF(B40<>"Check",@ROUND($CHECK_AVG*L40,0),0) | R40: =G40-H40 -> 0
A41: 34 | I41: 0 | J41: 0 | K41: =IF(B41="Check",0,P41) -> 0 | L41: =IF(B41="Check",0,ROUND(J41/K41,4)) -> 0 | M41: +@IF(B41<>"Check",@ROUND($CHECK_AVG*L41,0),0) | R41: 0
A42: 35 | I42: 0 | J42: 0 | K42: 0 | L42: 0 | M42: +@IF(B42<>"Check",@ROUND($CHECK_AVG*L42,0),0) | R42: 0
A43: 36 | I43: 0 | J43: 0 | K43: 0 | L43: 0 | M43: +@IF(B43<>"Check",@ROUND($CHECK_AVG*L43,0),0) | R43: 0
A44: 37 | I44: 0 | J44: 0 | K44: 0 | L44: 0 | M44: +@IF(B44<>"Check",@ROUND($CHECK_AVG*L44,0),0) | R44: 0
A45: 38 | I45: 0 | J45: 0 | K45: 0 | L45: 0 | M45: +@IF(B45<>"Check",@ROUND($CHECK_AVG*L45,0),0) | R45: 0
A46: 39 | I46: 0 | J46: 0 | K46: 0 | L46: 0 | M46: +@IF(B46<>"Check",@ROUND($CHECK_AVG*L46,0),0) | R46: 0
A47: 40 | I47: 0 | J47: 0 | K47: 0 | L47: 0 | M47: +@IF(B47<>"Check",@ROUND($CHECK_AVG*L47,0),0) | R47: 0
A48: 41 | I48: 0 | J48: 0 | K48: 0 | L48: 0 | M48: +@IF(B48<>"Check",@ROUND($CHECK_AVG*L48,0),0) | R48: 0
A49: 42 | I49: 0 | J49: 0 | K49: 0 | L49: 0 | M49: +@IF(B49<>"Check",@ROUND($CHECK_AVG*L49,0),0) | R49: 0
A50: 43 | I50: 0 | J50: 0 | K50: 0 | L50: 0 | M50: +@IF(B50<>"Check",@ROUND($CHECK_AVG*L50,0),0) | R50: 0
A51: 44 | I51: 0 | J51: 0 | K51: 0 | L51: 0 | M51: +@IF(B51<>"Check",@ROUND($CHECK_AVG*L51,0),0) | R51: 0
A52: 45 | I52: 0 | J52: 0 | K52: 0 | L52: 0 | M52: +@IF(B52<>"Check",@ROUND($CHECK_AVG*L52,0),0) | R52: 0
A53: 46 | I53: 0 | J53: 0 | K53: 0 | L53: 0 | M53: +@IF(B53<>"Check",@ROUND($CHECK_AVG*L53,0),0) | R53: 0
A54: 47 | I54: 0 | J54: 0 | K54: 0 | L54: 0 | M54: +@IF(B54<>"Check",@ROUND($CHECK_AVG*L54,0),0) | R54: 0
A55: 48 | I55: 0 | J55: 0 | K55: 0 | L55: 0 | M55: +@IF(B55<>"Check",@ROUND($CHECK_AVG*L55,0),0) | R55: 0
A56: 49 | I56: 0 | J56: 0 | K56: 0 | L56: 0 | M56: +@IF(B56<>"Check",@ROUND($CHECK_AVG*L56,0),0) | R56: 0
A57: 50 | I57: 0 | J57: 0 | K57: 0 | L57: 0 | M57: +@IF(B57<>"Check",@ROUND($CHECK_AVG*L57,0),0) | R57: 0
A58: 51 | I58: 0 | J58: 0 | K58: 0 | L58: 0 | M58: +@IF(B58<>"Check",@ROUND($CHECK_AVG*L58,0),0) | R58: 0
A59: 52 | I59: 0 | J59: 0 | K59: 0 | L59: 0 | M59: +@IF(B59<>"Check",@ROUND($CHECK_AVG*L59,0),0) | R59: 0
A60: 53 | I60: 0 | J60: 0 | K60: 0 | L60: 0 | M60: +@IF(B60<>"Check",@ROUND($CHECK_AVG*L60,0),0) | R60: 0
I61: Check Average-> | J61: =ROUND(AVERAGEA(O8:O60),0) -> 

Sheet LoanTable (hidden)
A1: STAPLE | B1: PRICE
B3: 26 | C3: 27 | D3: 28 | E3: 29 | F3: 30 | G3: 31 | H3: 32 | I3: 33 | J3: 34 | K3: 35 | L3: 36 | M3: 37 | N3: 38
A4: 111 | B4: -285 | C4: -285 | D4: -285 | E4: -285 | F4: -285 | G4: -285 | H4: -210 | I4: -50 | J4: 145 | K4: 375 | L4: 490 | M4: 525 | N4: 535
A5: 112 | B5: -285 | C5: -285 | D5: -285 | E5: -285 | F5: -285 | G5: -285 | H5: -210 | I5: -50 | J5: 145 | K5: 375 | L5: 490 | M5: 525 | N5: 535
A6: 113 | B6: -350 | C6: -350 | D6: -350 | E6: -350 | F6: -350 | G6: -350 | H6: -235 | I6: -75 | J6: 120 | K6: 315 | L6: 415 | M6: 450 | N6: 465
A7: 114 | B7: -395 | C7: -395 | D7: -395 | E7: -395 | F7: -395 | G7: -395 | H7: -255 | I7: -145 | J7: 70 | K7: 220 | L7: 310 | M7: 325 | N7: 330
A8: 115 | B8: -505 | C8: -505 | D8: -505 | E8: -505 | F8: -505 | G8: -505 | H8: -355 | I8: -260 | J8: -65 | K8: 135 | L8: 190 | M8: 200 | N8: 200
A9: 116 | B9: -680 | C9: -680 | D9: -680 | E9: -680 | F9: -680 | G9: -680 | H9: -505 | I9: -425 | J9: -280 | K9: -205 | L9: -185 | M9: -185 | N9: -185
A10: 117 | B10: -755 | C10: -755 | D10: -755 | E10: -755 | F10: -755 | G10: -755 | H10: -595 | I10: -530 | J10: -385 | K10: -320 | L10: -300 | M10: -300 | N10: -300
A11: 118 | B11: -4000 | C11: -4000 | D11: -4000 | E11: -4000 | F11: -4000 | G11: -4000 | H11: -4000 | I11: -4000 | J11: -4000 | K11: -4000 | L11: -4000 | M11: -4000 | N11: -4000
A12: 121 | B12: -455 | C12: -455 | D12: -455 | E12: -455 | F12: -455 | G12: -455 | H12: -265 | I12: -115 | J12: 80 | K12: 230 | L12: 335 | M12: 340 | N12: 350
A13: 122 | B13: -455 | C13: -455 | D13: -455 | E13: -455 | F13: -455 | G13: -455 | H13: -265 | I13: -115 | J13: 80 | K13: 230 | L13: 335 | M13: 340 | N13: 350
A14: 123 | B14: -500 | C14: -500 | D14: -500 | E14: -500 | F14: -500 | G14: -500 | H14: -290 | I14: -130 | J14: 65 | K14: 190 | L14: 295 | M14: 305 | N14: 315
A15: 124 | B15: -530 | C15: -530 | D15: -530 | E15: -530 | F15: -530 | G15: -530 | H15: -315 | I15: -215 | J15: -40 | K15: 125 | L15: 240 | M15: 245 | N15: 255
A16: 125 | B16: -645 | C16: -645 | D16: -645 | E16: -645 | F16: -645 | G16: -645 | H16: -470 | I16: -410 | J16: -235 | K16: -105 | L16: -75 | M16: -70 | N16: -70
A17: 126 | B17: -810 | C17: -810 | D17: -810 | E17: -810 | F17: -810 | G17: -810 | H17: -590 | I17: -540 | J17: -430 | K17: -350 | L17: -335 | M17: -330 | N17: -330
A18: 127 | B18: -890 | C18: -890 | D18: -890 | E18: -890 | F18: -890 | G18: -890 | H18: -685 | I18: -645 | J18: -535 | K18: -470 | L18: -455 | M18: -450 | N18: -450
A19: 128 | B19: -4000 | C19: -4000 | D19: -4000 | E19: -4000 | F19: -4000 | G19: -4000 | H19: -4000 | I19: -4000 | J19: -4000 | K19: -4000 | L19: -4000 | M19: -4000 | N19: -4000
A20: 131 | B20: -615 | C20: -615 | D20: -615 | E20: -615 | F20: -615 | G20: -615 | H20: -435 | I20: -375 | J20: -170 | K20: -105 | L20: -90 | M20: -90 | N20: -90
A21: 132 | B21: -615 | C21: -615 | D21: -615 | E21: -615 | F21: -615 | G21: -615 | H21: -435 | I21: -375 | J21: -170 | K21: -105 | L21: -90 | M21: -90 | N21: -90
A22: 133 | B22: -660 | C22: -660 | D22: -660 | E22: -660 | F22: -660 | G22: -660 | H22: -460 | I22: -400 | J22: -195 | K22: -130 | L22: -115 | M22: -115 | N22: -115
A23: 134 | B23: -690 | C23: -690 | D23: -690 | E23: -690 | F23: -690 | G23: -690 | H23: -535 | I23: -470 | J23: -245 | K23: -180 | L23: -165 | M23: -165 | N23: -165
A24: 135 | B24: -815 | C24: -815 | D24: -815 | E24: -815 | F24: -815 | G24: -815 | H24: -635 | I24: -595 | J24: -370 | K24: -305 | L24: -290 | M24: -290 | N24: -290
A25: 136 | B25: -930 | C25: -930 | D25: -930 | E25: -930 | F25: -930 | G25: -930 | H25: -715 | I25: -675 | J25: -445 | K25: -385 | L25: -370 | M25: -370 | N25: -370
A26: 137 | B26: -1005 | C26: -1005 | D26: -1005 | E26: -1005 | F26: -1005 | G26: -1005 | H26: -810 | I26: -755 | J26: -540 | K26: -485 | L26: -475 | M26: -475 | N26: -475
A27: 138 | B27: -4000 | C27: -4000 | D27: -4000 | E27: -4000 | F27: -4000 | G27: -4000 | H27: -4000 | I27: -4000 | J27: -4000 | K27: -4000 | L27: -4000 | M27: -4000 | N27: -4000
A28: 211 | B28: -285 | C28: -285 | D28: -285 | E28: -285 | F28: -285 | G28: -285 | H28: -210 | I28: -50 | J28: 145 | K28: 375 | L28: 490 | M28: 525 | N28: 535
A29: 212 | B29: -285 | C29: -285 | D29: -285 | E29: -285 | F29: -285 | G29: -285 | H29: -210 | I29: -50 | J29: 145 | K29: 375 | L29: 490 | M29: 525 | N29: 535
A30: 213 | B30: -350 | C30: -350 | D30: -350 | E30: -350 | F30: -350 | G30: -350 | H30: -235 | I30: -75 | J30: 120 | K30: 315 | L30: 415 | M30: 450 | N30: 465
A31: 214 | B31: -395 | C31: -395 | D31: -395 | E31: -395 | F31: -395 | G31: -395 | H31: -255 | I31: -145 | J31: 70 | K31: 220 | L31: 310 | M31: 325 | N31: 330
A32: 215 | B32: -505 | C32: -505 | D32: -505 | E32: -505 | F32: -505 | G32: -505 | H32: -355 | I32: -260 | J32: -65 | K32: 135 | L32: 190 | M32: 200 | N32: 200
A33: 216 | B33: -680 | C33: -680 | D33: -680 | E33: -680 | F33: -680 | G33: -680 | H33: -505 | I33: -425 | J33: -280 | K33: -205 | L33: -185 | M33: -185 | N33: -185
A34: 217 | B34: -755 | C34: -755 | D34: -755 | E34: -755 | F34: -755 | G34: -755 | H34: -595 | I34: -530 | J34: -385 | K34: -320 | L34: -300 | M34: -300 | N34: -300
A35: 218 | B35: -4000 | C35: -4000 | D35: -4000 | E35: -4000 | F35: -4000 | G35: -4000 | H35: -4000 | I35: -4000 | J35: -4000 | K35: -4000 | L35: -4000 | M35: -4000 | N35: -4000
A36: 221 | B36: -455 | C36: -455 | D36: -455 | E36: -455 | F36: -455 | G36: -455 | H36: -265 | I36: -115 | J36: 80 | K36: 230 | L36: 335 | M36: 340 | N36: 350
A37: 222 | B37: -455 | C37: -455 | D37: -455 | E37: -455 | F37: -455 | G37: -455 | H37: -265 | I37: -115 | J37: 80 | K37: 230 | L37: 335 | M37: 340 | N37: 350
A38: 223 | B38: -500 | C38: -500 | D38: -500 | E38: -500 | F38: -500 | G38: -500 | H38: -290 | I38: -130 | J38: 65 | K38: 190 | L38: 295 | M38: 305 | N38: 315
A39: 224 | B39: -530 | C39: -530 | D39: -530 | E39: -530 | F39: -530 | G39: -530 | H39: -315 | I39: -215 | J39: -40 | K39: 125 | L39: 240 | M39: 245 | N39: 255
A40: 225 | B40: -645 | C40: -645 | D40: -645 | E40: -645 | F40: -645 | G40: -645 | H40: -470 | I40: -410 | J40: -235 | K40: -105 | L40: -75 | M40: -70 | N40: -70
A41: 226 | B41: -810 | C41: -810 | D41: -810 | E41: -810 | F41: -810 | G41: -810 | H41: -590 | I41: -540 | J41: -430 | K41: -350 | L41: -335 | M41: -330 | N41: -330
A42: 227 | B42: -890 | C42: -890 | D42: -890 | E42: -890 | F42: -890 | G42: -890 | H42: -685 | I42: -645 | J42: -535 | K42: -470 | L42: -455 | M42: -450 | N42: -450
A43: 228 | B43: -4000 | C43: -4000 | D43: -4000 | E43: -4000 | F43: -4000 | G43: -4000 | H43: -4000 | I43: -4000 | J43: -4000 | K43: -4000 | L43: -4000 | M43: -4000 | N43: -4000
A44: 231 | B44: -615 | C44: -615 | D44: -615 | E44: -615 | F44: -615 | G44: -615 | H44: -435 | I44: -375 | J44: -170 | K44: -105 | L44: -90 | M44: -90 | N44: -90
A45: 232 | B45: -615 | C45: -615 | D45: -615 | E45: -615 | F45: -615 | G45: -615 | H45: -435 | I45: -375 | J45: -170 | K45: -105 | L45: -90 | M45: -90 | N45: -90
A46: 233 | B46: -660 | C46: -660 | D46: -660 | E46: -660 | F46: -660 | G46: -660 | H46: -460 | I46: -400 | J46: -195 | K46: -130 | L46: -115 | M46: -115 | N46: -115
A47: 234 | B47: -690 | C47: -690 | D47: -690 | E47: -690 | F47: -690 | G47: -690 | H47: -535 | I47: -470 | J47: -245 | K47: -180 | L47: -165 | M47: -165 | N47: -165
A48: 235 | B48: -815 | C48: -815 | D48: -815 | E48: -815 | F48: -815 | G48: -815 | H48: -635 | I48: -595 | J48: -370 | K48: -305 | L48: -290 | M48: -290 | N48: -290
A49: 236 | B49: -930 | C49: -930 | D49: -930 | E49: -930 | F49: -930 | G49: -930 | H49: -715 | I49: -675 | J49: -445 | K49: -385 | L49: -370 | M49: -370 | N49: -370
A50: 237 | B50: -1005 | C50: -1005 | D50: -1005 | E50: -1005 | F50: -1005 | G50: -1005 | H50: -810 | I50: -755 | J50: -540 | K50: -485 | L50: -475 | M50: -475 | N50: -475
A51: 238 | B51: -4000 | C51: -4000 | D51: -4000 | E51: -4000 | F51: -4000 | G51: -4000 | H51: -4000 | I51: -4000 | J51: -4000 | K51: -4000 | L51: -4000 | M51: -4000 | N51: -4000
A52: 241 | B52: -805 | C52: -805 | D52: -805 | E52: -805 | F52: -805 | G52: -805 | H52: -625 | I52: -575 | J52: -350 | K52: -330 | L52: -330 | M52: -330 | N52: -330
A53: 242 | B53: -805 | C53: -805 | D53: -805 | E53: -805 | F53: -805 | G53: -805 | H53: -625 | I53: -575 | J53: -350 | K53: -330 | L53: -330 | M53: -330 | N53: -330
A54: 243 | B54: -805 | C54: -805 | D54: -805 | E54: -805 | F54: -805 | G54: -805 | H54: -625 | I54: -575 | J54: -350 | K54: -330 | L54: -330 | M54: -330 | N54: -330
A55: 244 | B55: -930 | C55: -930 | D55: -930 | E55: -930 | F55: -930 | G55: -930 | H55: -750 | I55: -675 | J55: -450 | K55: -430 | L55: -430 | M55: -430 | N55: -430
A56: 245 | B56: -1030 | C56: -1030 | D56: -1030 | E56: -1030 | F56: -1030 | G56: -1030 | H56: -850 | I56: -800 | J56: -575 | K56: -555 | L56: -555 | M56: -555 | N56: -555
A57: 246 | B57: -1180 | C57: -1180 | D57: -1180 | E57: -1180 | F57: -1180 | G57: -1180 | H57: -1000 | I57: -950 | J57: -730 | K57: -710 | L57: -710 | M57: -710 | N57: -710
A58: 247 | B58: -4000 | C58: -4000 | D58: -4000 | E58: -4000 | F58: -4000 | G58: -4000 | H58: -4000 | I58: -4000 | J58: -4000 | K58: -4000 | L58: -4000 | M58: -4000 | N58: -4000
A59: 248 | B59: -4000 | C59: -4000 | D59: -4000 | E59: -4000 | F59: -4000 | G59: -4000 | H59: -4000 | I59: -4000 | J59: -4000 | K59: -4000 | L59: -4000 | M59: -4000 | N59: -4000
A60: 251 | B60: -1065 | C60: -1065 | D60: -1065 | E60: -1065 | F60: -1065 | G60: -1065 | H60: -885 | I60: -835 | J60: -610 | K60: -590 | L60: -590 | M60: -590 | N60: -590
A61: 252 | B61: -1065 | C61: -1065 | D61: -1065 | E61: -1065 | F61: -1065 | G61: -1065 | H61: -885 | I61: -835 | J61: -610 | K61: -590 | L61: -590 | M61: -590 | N61: -590
A62: 253 | B62: -1065 | C62: -1065 | D62: -1065 | E62: -1065 | F62: -1065 | G62: -1065 | H62: -885 | I62: -835 | J62: -610 | K62: -590 | L62: -590 | M62: -590 | N62: -590
A63: 254 | B63: -1190 | C63: -1190 | D63: -1190 | E63: -1190 | F63: -1190 | G63: -1190 | H63: -1010 | I63: -935 | J63: -710 | K63: -690 | L63: -690 | M63: -690 | N63: -690
A64: 255 | B64: -4000 | C64: -4000 | D64: -4000 | E64: -4000 | F64: -4000 | G64: -4000 | H64: -4000 | I64: -4000 | J64: -4000 | K64: -4000 | L64: -4000 | M64: -4000 | N64: -4000
A65: 256 | B65: -4000 | C65: -4000 | D65: -4000 | E65: -4000 | F65: -4000 | G65: -4000 | H65: -4000 | I65: -4000 | J65: -4000 | K65: -4000 | L65: -4000 | M65: -4000 | N65: -4000
A66: 257 | B66: -4000 | C66: -4000 | D66: -4000 | E66: -4000 | F66: -4000 | G66: -4000 | H66: -4000 | I66: -4000 | J66: -4000 | K66: -4000 | L66: -4000 | M66: -4000 | N66: -4000
A67: 258 | B67: -4000 | C67: -4000 | D67: -4000 | E67: -4000 | F67: -4000 | G67: -4000 | H67: -4000 | I67: -4000 | J67: -4000 | K67: -4000 | L67: -4000 | M67: -4000 | N67: -4000
A68: 311 | B68: -370 | C68: -370 | D68: -370 | E68: -370 | F68: -370 | G68: -370 | H68: -230 | I68: -90 | J68: 105 | K68: 320 | L68: 440 | M68: 460 | N68: 470
A69: 312 | B69: -370 | C69: -370 | D69: -370 | E69: -370 | F69: -370 | G69: -370 | H69: -230 | I69: -90 | J69: 105 | K69: 320 | L69: 440 | M69: 460 | N69: 470
A70: 313 | B70: -415 | C70: -415 | D70: -415 | E70: -415 | F70: -415 | G70: -415 | H70: -245 | I70: -100 | J70: 95 | K70: 290 | L70: 395 | M70: 410 | N70: 425
A71: 314 | B71: -475 | C71: -475 | D71: -475 | E71: -475 | F71: -475 | G71: -475 | H71: -275 | I71: -190 | J71: 50 | K71: 175 | L71: 250 | M71: 270 | N71: 280
A72: 315 | B72: -555 | C72: -555 | D72: -555 | E72: -555 | F72: -555 | G72: -555 | H72: -380 | I72: -280 | J72: -115 | K72: 80 | L72: 130 | M72: 140 | N72: 140
A73: 316 | B73: -725 | C73: -725 | D73: -725 | E73: -725 | F73: -725 | G73: -725 | H73: -525 | I73: -430 | J73: -295 | K73: -240 | L73: -215 | M73: -210 | N73: -210
A74: 317 | B74: -820 | C74: -820 | D74: -820 | E74: -820 | F74: -820 | G74: -820 | H74: -615 | I74: -530 | J74: -390 | K74: -350 | L74: -325 | M74: -320 | N74: -320
A75: 318 | B75: -4000 | C75: -4000 | D75: -4000 | E75: -4000 | F75: -4000 | G75: -4000 | H75: -4000 | I75: -4000 | J75: -4000 | K75: -4000 | L75: -4000 | M75: -4000 | N75: -4000
A76: 321 | B76: -500 | C76: -500 | D76: -500 | E76: -500 | F76: -500 | G76: -500 | H76: -345 | I76: -190 | J76: -35 | K76: 35 | L76: 95 | M76: 95 | N76: 100
A77: 322 | B77: -500 | C77: -500 | D77: -500 | E77: -500 | F77: -500 | G77: -500 | H77: -345 | I77: -190 | J77: -35 | K77: 35 | L77: 95 | M77: 95 | N77: 100
A78: 323 | B78: -545 | C78: -545 | D78: -545 | E78: -545 | F78: -545 | G78: -545 | H78: -370 | I78: -210 | J78: -60 | K78: 5 | L78: 80 | M78: 80 | N78: 85
A79: 324 | B79: -595 | C79: -595 | D79: -595 | E79: -595 | F79: -595 | G79: -595 | H79: -430 | I79: -280 | J79: -155 | K79: -65 | L79: 5 | M79: 5 | N79: 5
A80: 325 | B80: -715 | C80: -715 | D80: -715 | E80: -715 | F80: -715 | G80: -715 | H80: -570 | I80: -465 | J80: -310 | K80: -240 | L80: -210 | M80: -210 | N80: -210
A81: 326 | B81: -880 | C81: -880 | D81: -880 | E81: -880 | F81: -880 | G81: -880 | H81: -660 | I81: -600 | J81: -475 | K81: -425 | L81: -410 | M81: -410 | N81: -410
A82: 327 | B82: -985 | C82: -985 | D82: -985 | E82: -985 | F82: -985 | G82: -985 | H82: -760 | I82: -690 | J82: -585 | K82: -530 | L82: -520 | M82: -520 | N82: -520
A83: 328 | B83: -4000 | C83: -4000 | D83: -4000 | E83: -4000 | F83: -4000 | G83: -4000 | H83: -4000 | I83: -4000 | J83: -4000 | K83: -4000 | L83: -4000 | M83: -4000 | N83: -4000
A84: 331 | B84: -735 | C84: -735 | D84: -735 | E84: -735 | F84: -735 | G84: -735 | H84: -510 | I84: -450 | J84: -230 | K84: -185 | L84: -170 | M84: -170 | N84: -170
A85: 332 | B85: -735 | C85: -735 | D85: -735 | E85: -735 | F85: -735 | G85: -735 | H85: -510 | I85: -450 | J85: -230 | K85: -185 | L85: -170 | M85: -170 | N85: -170
A86: 333 | B86: -735 | C86: -735 | D86: -735 | E86: -735 | F86: -735 | G86: -735 | H86: -510 | I86: -450 | J86: -230 | K86: -185 | L86: -170 | M86: -170 | N86: -170
A87: 334 | B87: -810 | C87: -810 | D87: -810 | E87: -810 | F87: -810 | G87: -810 | H87: -585 | I87: -520 | J87: -280 | K87: -235 | L87: -225 | M87: -225 | N87: -225
A88: 335 | B88: -960 | C88: -960 | D88: -960 | E88: -960 | F88: -960 | G88: -960 | H88: -700 | I88: -640 | J88: -425 | K88: -365 | L88: -350 | M88: -350 | N88: -350
A89: 336 | B89: -1025 | C89: -1025 | D89: -1025 | E89: -1025 | F89: -1025 | G89: -1025 | H89: -785 | I89: -770 | J89: -495 | K89: -475 | L89: -465 | M89: -465 | N89: -465
A90: 337 | B90: -1100 | C90: -1100 | D90: -1100 | E90: -1100 | F90: -1100 | G90: -1100 | H90: -885 | I90: -825 | J90: -620 | K90: -575 | L90: -565 | M90: -565 | N90: -565
A91: 338 | B91: -4000 | C91: -4000 | D91: -4000 | E91: -4000 | F91: -4000 | G91: -4000 | H91: -4000 | I91: -4000 | J91: -4000 | K91: -4000 | L91: -4000 | M91: -4000 | N91: -4000
A92: 341 | B92: -820 | C92: -820 | D92: -820 | E92: -820 | F92: -820 | G92: -820 | H92: -640 | I92: -590 | J92: -365 | K92: -345 | L92: -345 | M92: -345 | N92: -345
A93: 342 | B93: -820 | C93: -820 | D93: -820 | E93: -820 | F93: -820 | G93: -820 | H93: -640 | I93: -590 | J93: -365 | K93: -345 | L93: -345 | M93: -345 | N93: -345
A94: 343 | B94: -820 | C94: -820 | D94: -820 | E94: -820 | F94: -820 | G94: -820 | H94: -640 | I94: -590 | J94: -365 | K94: -345 | L94: -345 | M94: -345 | N94: -345
A95: 344 | B95: -945 | C95: -945 | D95: -945 | E95: -945 | F95: -945 | G95: -945 | H95: -765 | I95: -690 | J95: -465 | K95: -445 | L95: -445 | M95: -445 | N95: -445
A96: 345 | B96: -1045 | C96: -1045 | D96: -1045 | E96: -1045 | F96: -1045 | G96: -1045 | H96: -865 | I96: -815 | J96: -590 | K96: -570 | L96: -570 | M96: -570 | N96: -570
A97: 346 | B97: -1195 | C97: -1195 | D97: -1195 | E97: -1195 | F97: -1195 | G97: -1195 | H97: -1015 | I97: -965 | J97: -745 | K97: -725 | L97: -725 | M97: -725 | N97: -725
A98: 347 | B98: -4000 | C98: -4000 | D98: -4000 | E98: -4000 | F98: -4000 | G98: -4000 | H98: -4000 | I98: -4000 | J98: -4000 | K98: -4000 | L98: -4000 | M98: -4000 | N98: -4000
A99: 348 | B99: -4000 | C99: -4000 | D99: -4000 | E99: -4000 | F99: -4000 | G99: -4000 | H99: -4000 | I99: -4000 | J99: -4000 | K99: -4000 | L99: -4000 | M99: -4000 | N99: -4000
A100: 351 | B100: -1080 | C100: -1080 | D100: -1080 | E100: -1080 | F100: -1080 | G100: -1080 | H100: -900 | I100: -850 | J100: -625 | K100: -605 | L100: -605 | M100: -605 | N100: -605
A101: 352 | B101: -1080 | C101: -1080 | D101: -1080 | E101: -1080 | F101: -1080 | G101: -1080 | H101: -900 | I101: -850 | J101: -625 | K101: -605 | L101: -605 | M101: -605 | N101: -605
A102: 353 | B102: -1080 | C102: -1080 | D102: -1080 | E102: -1080 | F102: -1080 | G102: -1080 | H102: -900 | I102: -850 | J102: -625 | K102: -605 | L102: -605 | M102: -605 | N102: -605
A103: 354 | B103: -4000 | C103: -4000 | D103: -4000 | E103: -4000 | F103: -4000 | G103: -4000 | H103: -4000 | I103: -4000 | J103: -4000 | K103: -4000 | L103: -4000 | M103: -4000 | N103: -4000
A104: 355 | B104: -4000 | C104: -4000 | D104: -4000 | E104: -4000 | F104: -4000 | G104: -4000 | H104: -4000 | I104: -4000 | J104: -4000 | K104: -4000 | L104: -4000 | M104: -4000 | N104: -4000
A105: 356 | B105: -4000 | C105: -4000 | D105: -4000 | E105: -4000 | F105: -4000 | G105: -4000 | H105: -4000 | I105: -4000 | J105: -4000 | K105: -4000 | L105: -4000 | M105: -4000 | N105: -4000
A106: 357 | B106: -4000 | C106: -4000 | D106: -4000 | E106: -4000 | F106: -4000 | G106: -4000 | H106: -4000 | I106: -4000 | J106: -4000 | K106: -4000 | L106: -4000 | M106: -4000 | N106: -4000
A107: 358 | B107: -4000 | C107: -4000 | D107: -4000 | E107: -4000 | F107: -4000 | G107: -4000 | H107: -4000 | I107: -4000 | J107: -4000 | K107: -4000 | L107: -4000 | M107: -4000 | N107: -4000
A108: 411 | B108: -545 | C108: -545 | D108: -545 | E108: -545 | F108: -545 | G108: -545 | H108: -330 | I108: -190 | J108: 45 | K108: 170 | L108: 260 | M108: 270 | N108: 280
A109: 412 | B109: -545 | C109: -545 | D109: -545 | E109: -545 | F109: -545 | G109: -545 | H109: -330 | I109: -190 | J109: 45 | K109: 170 | L109: 260 | M109: 270 | N109: 280
A110: 413 | B110: -545 | C110: -545 | D110: -545 | E110: -545 | F110: -545 | G110: -545 | H110: -330 | I110: -190 | J110: 45 | K110: 170 | L110: 260 | M110: 270 | N110: 280
A111: 414 | B111: -595 | C111: -595 | D111: -595 | E111: -595 | F111: -595 | G111: -595 | H111: -350 | I111: -265 | J111: 0 | K111: 115 | L111: 210 | M111: 220 | N111: 230
A112: 415 | B112: -630 | C112: -630 | D112: -630 | E112: -630 | F112: -630 | G112: -630 | H112: -460 | I112: -375 | J112: -195 | K112: -90 | L112: -20 | M112: -20 | N112: -20
A113: 416 | B113: -790 | C113: -790 | D113: -790 | E113: -790 | F113: -790 | G113: -790 | H113: -590 | I113: -515 | J113: -375 | K113: -305 | L113: -275 | M113: -275 | N113: -275
A114: 417 | B114: -905 | C114: -905 | D114: -905 | E114: -905 | F114: -905 | G114: -905 | H114: -695 | I114: -635 | J114: -495 | K114: -425 | L114: -410 | M114: -410 | N114: -410
A115: 418 | B115: -4000 | C115: -4000 | D115: -4000 | E115: -4000 | F115: -4000 | G115: -4000 | H115: -4000 | I115: -4000 | J115: -4000 | K115: -4000 | L115: -4000 | M115: -4000 | N115: -4000
A116: 421 | B116: -610 | C116: -610 | D116: -610 | E116: -610 | F116: -610 | G116: -610 | H116: -440 | I116: -330 | J116: -170 | K116: -80 | L116: -15 | M116: -15 | N116: -15
A117: 422 | B117: -610 | C117: -610 | D117: -610 | E117: -610 | F117: -610 | G117: -610 | H117: -440 | I117: -330 | J117: -170 | K117: -80 | L117: -15 | M117: -15 | N117: -15
A118: 423 | B118: -610 | C118: -610 | D118: -610 | E118: -610 | F118: -610 | G118: -610 | H118: -440 | I118: -330 | J118: -170 | K118: -80 | L118: -15 | M118: -15 | N118: -15
A119: 424 | B119: -660 | C119: -660 | D119: -660 | E119: -660 | F119: -660 | G119: -660 | H119: -500 | I119: -345 | J119: -205 | K119: -135 | L119: -70 | M119: -70 | N119: -70
A120: 425 | B120: -770 | C120: -770 | D120: -770 | E120: -770 | F120: -770 | G120: -770 | H120: -630 | I120: -505 | J120: -370 | K120: -285 | L120: -270 | M120: -270 | N120: -270
A121: 426 | B121: -985 | C121: -985 | D121: -985 | E121: -985 | F121: -985 | G121: -985 | H121: -730 | I121: -660 | J121: -505 | K121: -455 | L121: -445 | M121: -445 | N121: -445
A122: 427 | B122: -1065 | C122: -1065 | D122: -1065 | E122: -1065 | F122: -1065 | G122: -1065 | H122: -835 | I122: -755 | J122: -635 | K122: -570 | L122: -565 | M122: -565 | N122: -565
A123: 428 | B123: -4000 | C123: -4000 | D123: -4000 | E123: -4000 | F123: -4000 | G123: -4000 | H123: -4000 | I123: -4000 | J123: -4000 | K123: -4000 | L123: -4000 | M123: -4000 | N123: -4000
A124: 431 | B124: -785 | C124: -785 | D124: -785 | E124: -785 | F124: -785 | G124: -785 | H124: -630 | I124: -530 | J124: -375 | K124: -330 | L124: -315 | M124: -315 | N124: -315
A125: 432 | B125: -785 | C125: -785 | D125: -785 | E125: -785 | F125: -785 | G125: -785 | H125: -630 | I125: -530 | J125: -375 | K125: -330 | L125: -315 | M125: -315 | N125: -315
A126: 433 | B126: -785 | C126: -785 | D126: -785 | E126: -785 | F126: -785 | G126: -785 | H126: -630 | I126: -530 | J126: -375 | K126: -330 | L126: -315 | M126: -315 | N126: -315
A127: 434 | B127: -860 | C127: -860 | D127: -860 | E127: -860 | F127: -860 | G127: -860 | H127: -675 | I127: -575 | J127: -410 | K127: -350 | L127: -335 | M127: -335 | N127: -335
A128: 435 | B128: -985 | C128: -985 | D128: -985 | E128: -985 | F128: -985 | G128: -985 | H128: -775 | I128: -695 | J128: -550 | K128: -505 | L128: -500 | M128: -500 | N128: -500
A129: 436 | B129: -1075 | C129: -1075 | D129: -1075 | E129: -1075 | F129: -1075 | G129: -1075 | H129: -895 | I129: -825 | J129: -690 | K129: -670 | L129: -665 | M129: -665 | N129: -665
A130: 437 | B130: -1150 | C130: -1150 | D130: -1150 | E130: -1150 | F130: -1150 | G130: -1150 | H130: -1010 | I130: -915 | J130: -785 | K130: -760 | L130: -755 | M130: -755 | N130: -755
A131: 438 | B131: -4000 | C131: -4000 | D131: -4000 | E131: -4000 | F131: -4000 | G131: -4000 | H131: -4000 | I131: -4000 | J131: -4000 | K131: -4000 | L131: -4000 | M131: -4000 | N131: -4000
A132: 441 | B132: -940 | C132: -940 | D132: -940 | E132: -940 | F132: -940 | G132: -940 | H132: -760 | I132: -710 | J132: -480 | K132: -465 | L132: -465 | M132: -465 | N132: -465
A133: 442 | B133: -940 | C133: -940 | D133: -940 | E133: -940 | F133: -940 | G133: -940 | H133: -760 | I133: -710 | J133: -480 | K133: -465 | L133: -465 | M133: -465 | N133: -465
A134: 443 | B134: -940 | C134: -940 | D134: -940 | E134: -940 | F134: -940 | G134: -940 | H134: -760 | I134: -710 | J134: -480 | K134: -465 | L134: -465 | M134: -465 | N134: -465
A135: 444 | B135: -1015 | C135: -1015 | D135: -1015 | E135: -1015 | F135: -1015 | G135: -1015 | H135: -860 | I135: -760 | J135: -530 | K135: -515 | L135: -515 | M135: -515 | N135: -515
A136: 445 | B136: -1105 | C136: -1105 | D136: -1105 | E136: -1105 | F136: -1105 | G136: -1105 | H136: -935 | I136: -860 | J136: -630 | K136: -615 | L136: -615 | M136: -615 | N136: -615
A137: 446 | B137: -1255 | C137: -1255 | D137: -1255 | E137: -1255 | F137: -1255 | G137: -1255 | H137: -1080 | I137: -1030 | J137: -805 | K137: -785 | L137: -785 | M137: -785 | N137: -785
A138: 447 | B138: -4000 | C138: -4000 | D138: -4000 | E138: -4000 | F138: -4000 | G138: -4000 | H138: -4000 | I138: -4000 | J138: -4000 | K138: -4000 | L138: -4000 | M138: -4000 | N138: -4000
A139: 448 | B139: -4000 | C139: -4000 | D139: -4000 | E139: -4000 | F139: -4000 | G139: -4000 | H139: -4000 | I139: -4000 | J139: -4000 | K139: -4000 | L139: -4000 | M139: -4000 | N139: -4000
A140: 511 | B140: -700 | C140: -700 | D140: -700 | E140: -700 | F140: -700 | G140: -700 | H140: -535 | I140: -375 | J140: -230 | K140: -150 | L140: -130 | M140: -125 | N140: -125
A141: 512 | B141: -700 | C141: -700 | D141: -700 | E141: -700 | F141: -700 | G141: -700 | H141: -535 | I141: -375 | J141: -230 | K141: -150 | L141: -130 | M141: -125 | N141: -125
A142: 513 | B142: -700 | C142: -700 | D142: -700 | E142: -700 | F142: -700 | G142: -700 | H142: -535 | I142: -375 | J142: -230 | K142: -150 | L142: -130 | M142: -125 | N142: -125
A143: 514 | B143: -700 | C143: -700 | D143: -700 | E143: -700 | F143: -700 | G143: -700 | H143: -535 | I143: -375 | J143: -230 | K143: -150 | L143: -130 | M143: -125 | N143: -125
A144: 515 | B144: -750 | C144: -750 | D144: -750 | E144: -750 | F144: -750 | G144: -750 | H144: -625 | I144: -550 | J144: -370 | K144: -285 | L144: -250 | M144: -250 | N144: -250
A145: 516 | B145: -915 | C145: -915 | D145: -915 | E145: -915 | F145: -915 | G145: -915 | H145: -720 | I145: -655 | J145: -500 | K145: -445 | L145: -420 | M145: -420 | N145: -420
A146: 517 | B146: -1015 | C146: -1015 | D146: -1015 | E146: -1015 | F146: -1015 | G146: -1015 | H146: -795 | I146: -765 | J146: -620 | K146: -570 | L146: -550 | M146: -550 | N146: -550
A147: 518 | B147: -4000 | C147: -4000 | D147: -4000 | E147: -4000 | F147: -4000 | G147: -4000 | H147: -4000 | I147: -4000 | J147: -4000 | K147: -4000 | L147: -4000 | M147: -4000 | N147: -4000
A148: 521 | B148: -810 | C148: -810 | D148: -810 | E148: -810 | F148: -810 | G148: -810 | H148: -605 | I148: -475 | J148: -390 | K148: -320 | L148: -320 | M148: -320 | N148: -320
A149: 522 | B149: -810 | C149: -810 | D149: -810 | E149: -810 | F149: -810 | G149: -810 | H149: -605 | I149: -475 | J149: -390 | K149: -320 | L149: -320 | M149: -320 | N149: -320
A150: 523 | B150: -810 | C150: -810 | D150: -810 | E150: -810 | F150: -810 | G150: -810 | H150: -605 | I150: -475 | J150: -390 | K150: -320 | L150: -320 | M150: -320 | N150: -320
A151: 524 | B151: -810 | C151: -810 | D151: -810 | E151: -810 | F151: -810 | G151: -810 | H151: -605 | I151: -475 | J151: -390 | K151: -320 | L151: -320 | M151: -320 | N151: -320
A152: 525 | B152: -885 | C152: -885 | D152: -885 | E152: -885 | F152: -885 | G152: -885 | H152: -690 | I152: -610 | J152: -490 | K152: -430 | L152: -430 | M152: -430 | N152: -430
A153: 526 | B153: -1100 | C153: -1100 | D153: -1100 | E153: -1100 | F153: -1100 | G153: -1100 | H153: -845 | I153: -800 | J153: -670 | K153: -620 | L153: -620 | M153: -620 | N153: -620
A154: 527 | B154: -1175 | C154: -1175 | D154: -1175 | E154: -1175 | F154: -1175 | G154: -1175 | H154: -965 | I154: -925 | J154: -790 | K154: -745 | L154: -745 | M154: -745 | N154: -745
A155: 528 | B155: -4000 | C155: -4000 | D155: -4000 | E155: -4000 | F155: -4000 | G155: -4000 | H155: -4000 | I155: -4000 | J155: -4000 | K155: -4000 | L155: -4000 | M155: -4000 | N155: -4000
A156: 531 | B156: -955 | C156: -955 | D156: -955 | E156: -955 | F156: -955 | G156: -955 | H156: -790 | I156: -710 | J156: -545 | K156: -515 | L156: -510 | M156: -510 | N156: -510
A157: 532 | B157: -955 | C157: -955 | D157: -955 | E157: -955 | F157: -955 | G157: -955 | H157: -790 | I157: -710 | J157: -545 | K157: -515 | L157: -510 | M157: -510 | N157: -510
A158: 533 | B158: -955 | C158: -955 | D158: -955 | E158: -955 | F158: -955 | G158: -955 | H158: -790 | I158: -710 | J158: -545 | K158: -515 | L158: -510 | M158: -510 | N158: -510
A159: 534 | B159: -955 | C159: -955 | D159: -955 | E159: -955 | F159: -955 | G159: -955 | H159: -790 | I159: -710 | J159: -545 | K159: -515 | L159: -510 | M159: -510 | N159: -510
A160: 535 | B160: -1055 | C160: -1055 | D160: -1055 | E160: -1055 | F160: -1055 | G160: -1055 | H160: -885 | I160: -835 | J160: -670 | K160: -640 | L160: -640 | M160: -640 | N160: -640
A161: 536 | B161: -1175 | C161: -1175 | D161: -1175 | E161: -1175 | F161: -1175 | G161: -1175 | H161: -1050 | I161: -980 | J161: -820 | K161: -800 | L161: -795 | M161: -795 | N161: -795
A162: 537 | B162: -1250 | C162: -1250 | D162: -1250 | E162: -1250 | F162: -1250 | G162: -1250 | H162: -1120 | I162: -1090 | J162: -915 | K162: -900 | L162: -900 | M162: -900 | N162: -900
A163: 538 | B163: -4000 | C163: -4000 | D163: -4000 | E163: -4000 | F163: -4000 | G163: -4000 | H163: -4000 | I163: -4000 | J163: -4000 | K163: -4000 | L163: -4000 | M163: -4000 | N163: -4000
A164: 541 | B164: -1040 | C164: -1040 | D164: -1040 | E164: -1040 | F164: -1040 | G164: -1040 | H164: -885 | I164: -835 | J164: -605 | K164: -590 | L164: -590 | M164: -590 | N164: -590
A165: 542 | B165: -1040 | C165: -1040 | D165: -1040 | E165: -1040 | F165: -1040 | G165: -1040 | H165: -885 | I165: -835 | J165: -605 | K165: -590 | L165: -590 | M165: -590 | N165: -590
A166: 543 | B166: -1040 | C166: -1040 | D166: -1040 | E166: -1040 | F166: -1040 | G166: -1040 | H166: -885 | I166: -835 | J166: -605 | K166: -590 | L166: -590 | M166: -590 | N166: -590
A167: 544 | B167: -1040 | C167: -1040 | D167: -1040 | E167: -1040 | F167: -1040 | G167: -1040 | H167: -885 | I167: -835 | J167: -605 | K167: -590 | L167: -590 | M167: -590 | N167: -590
A168: 545 | B168: -1130 | C168: -1130 | D168: -1130 | E168: -1130 | F168: -1130 | G168: -1130 | H168: -960 | I168: -885 | J168: -675 | K168: -655 | L168: -655 | M168: -655 | N168: -655
A169: 546 | B169: -4000 | C169: -4000 | D169: -4000 | E169: -4000 | F169: -4000 | G169: -4000 | H169: -4000 | I169: -4000 | J169: -4000 | K169: -4000 | L169: -4000 | M169: -4000 | N169: -4000
A170: 547 | B170: -4000 | C170: -4000 | D170: -4000 | E170: -4000 | F170: -4000 | G170: -4000 | H170: -4000 | I170: -4000 | J170: -4000 | K170: -4000 | L170: -4000 | M170: -4000 | N170: -4000
A171: 548 | B171: -4000 | C171: -4000 | D171: -4000 | E171: -4000 | F171: -4000 | G171: -4000 | H171: -4000 | I171: -4000 | J171: -4000 | K171: -4000 | L171: -4000 | M171: -4000 | N171: -4000
A172: 611 | B172: -775 | C172: -775 | D172: -775 | E172: -775 | F172: -775 | G172: -775 | H172: -680 | I172: -625 | J172: -460 | K172: -405 | L172: -400 | M172: -400 | N172: -400
A173: 612 | B173: -775 | C173: -775 | D173: -775 | E173: -775 | F173: -775 | G173: -775 | H173: -680 | I173: -625 | J173: -460 | K173: -405 | L173: -400 | M173: -400 | N173: -400
A174: 613 | B174: -775 | C174: -775 | D174: -775 | E174: -775 | F174: -775 | G174: -775 | H174: -680 | I174: -625 | J174: -460 | K174: -405 | L174: -400 | M174: -400 | N174: -400
A175: 614 | B175: -775 | C175: -775 | D175: -775 | E175: -775 | F175: -775 | G175: -775 | H175: -680 | I175: -625 | J175: -460 | K175: -405 | L175: -400 | M175: -400 | N175: -400
A176: 615 | B176: -775 | C176: -775 | D176: -775 | E176: -775 | F176: -775 | G176: -775 | H176: -680 | I176: -625 | J176: -460 | K176: -405 | L176: -400 | M176: -400 | N176: -400
A177: 616 | B177: -925 | C177: -925 | D177: -925 | E177: -925 | F177: -925 | G177: -925 | H177: -815 | I177: -765 | J177: -650 | K177: -600 | L177: -580 | M177: -580 | N177: -580
A178: 617 | B178: -1025 | C178: -1025 | D178: -1025 | E178: -1025 | F178: -1025 | G178: -1025 | H178: -945 | I178: -870 | J178: -735 | K178: -685 | L178: -675 | M178: -675 | N178: -675
A179: 618 | B179: -4000 | C179: -4000 | D179: -4000 | E179: -4000 | F179: -4000 | G179: -4000 | H179: -4000 | I179: -4000 | J179: -4000 | K179: -4000 | L179: -4000 | M179: -4000 | N179: -4000
A180: 621 | B180: -935 | C180: -935 | D180: -935 | E180: -935 | F180: -935 | G180: -935 | H180: -810 | I180: -750 | J180: -625 | K180: -595 | L180: -595 | M180: -595 | N180: -595
A181: 622 | B181: -935 | C181: -935 | D181: -935 | E181: -935 | F181: -935 | G181: -935 | H181: -810 | I181: -750 | J181: -625 | K181: -595 | L181: -595 | M181: -595 | N181: -595
A182: 623 | B182: -935 | C182: -935 | D182: -935 | E182: -935 | F182: -935 | G182: -935 | H182: -810 | I182: -750 | J182: -625 | K182: -595 | L182: -595 | M182: -595 | N182: -595
A183: 624 | B183: -935 | C183: -935 | D183: -935 | E183: -935 | F183: -935 | G183: -935 | H183: -810 | I183: -750 | J183: -625 | K183: -595 | L183: -595 | M183: -595 | N183: -595
A184: 625 | B184: -935 | C184: -935 | D184: -935 | E184: -935 | F184: -935 | G184: -935 | H184: -810 | I184: -750 | J184: -625 | K184: -595 | L184: -595 | M184: -595 | N184: -595
A185: 626 | B185: -1125 | C185: -1125 | D185: -1125 | E185: -1125 | F185: -1125 | G185: -1125 | H185: -1000 | I185: -940 | J185: -805 | K185: -780 | L185: -780 | M185: -780 | N185: -780
A186: 627 | B186: -4000 | C186: -4000 | D186: -4000 | E186: -4000 | F186: -4000 | G186: -4000 | H186: -4000 | I186: -4000 | J186: -4000 | K186: -4000 | L186: -4000 | M186: -4000 | N186: -4000
A187: 628 | B187: -4000 | C187: -4000 | D187: -4000 | E187: -4000 | F187: -4000 | G187: -4000 | H187: -4000 | I187: -4000 | J187: -4000 | K187: -4000 | L187: -4000 | M187: -4000 | N187: -4000
A188: 631 | B188: -1175 | C188: -1175 | D188: -1175 | E188: -1175 | F188: -1175 | G188: -1175 | H188: -1020 | I188: -955 | J188: -755 | K188: -710 | L188: -705 | M188: -705 | N188: -705
A189: 632 | B189: -1175 | C189: -1175 | D189: -1175 | E189: -1175 | F189: -1175 | G189: -1175 | H189: -1020 | I189: -955 | J189: -755 | K189: -710 | L189: -705 | M189: -705 | N189: -705
A190: 633 | B190: -1175 | C190: -1175 | D190: -1175 | E190: -1175 | F190: -1175 | G190: -1175 | H190: -1020 | I190: -955 | J190: -755 | K190: -710 | L190: -705 | M190: -705 | N190: -705
A191: 634 | B191: -1175 | C191: -1175 | D191: -1175 | E191: -1175 | F191: -1175 | G191: -1175 | H191: -1020 | I191: -955 | J191: -755 | K191: -710 | L191: -705 | M191: -705 | N191: -705
A192: 635 | B192: -1175 | C192: -1175 | D192: -1175 | E192: -1175 | F192: -1175 | G192: -1175 | H192: -1020 | I192: -955 | J192: -755 | K192: -710 | L192: -705 | M192: -705 | N192: -705
A193: 636 | B193: -1250 | C193: -1250 | D193: -1250 | E193: -1250 | F193: -1250 | G193: -1250 | H193: -1130 | I193: -1055 | J193: -885 | K193: -860 | L193: -860 | M193: -860 | N193: -860
A194: 637 | B194: -4000 | C194: -4000 | D194: -4000 | E194: -4000 | F194: -4000 | G194: -4000 | H194: -4000 | I194: -4000 | J194: -4000 | K194: -4000 | L194: -4000 | M194: -4000 | N194: -4000
A195: 638 | B195: -4000 | C195: -4000 | D195: -4000 | E195: -4000 | F195: -4000 | G195: -4000 | H195: -4000 | I195: -4000 | J195: -4000 | K195: -4000 | L195: -4000 | M195: -4000 | N195: -4000
A196: 711 | B196: -980 | C196: -980 | D196: -980 | E196: -980 | F196: -980 | G196: -980 | H196: -980 | I196: -920 | J196: -775 | K196: -730 | L196: -730 | M196: -730 | N196: -730
A197: 712 | B197: -980 | C197: -980 | D197: -980 | E197: -980 | F197: -980 | G197: -980 | H197: -980 | I197: -920 | J197: -775 | K197: -730 | L197: -730 | M197: -730 | N197: -730
A198: 713 | B198: -980 | C198: -980 | D198: -980 | E198: -980 | F198: -980 | G198: -980 | H198: -980 | I198: -920 | J198: -775 | K198: -730 | L198: -730 | M198: -730 | N198: -730
A199: 714 | B199: -980 | C199: -980 | D199: -980 | E199: -980 | F199: -980 | G199: -980 | H199: -980 | I199: -920 | J199: -775 | K199: -730 | L199: -730 | M199: -730 | N199: -730
A200: 715 | B200: -980 | C200: -980 | D200: -980 | E200: -980 | F200: -980 | G200: -980 | H200: -980 | I200: -920 | J200: -775 | K200: -730 | L200: -730 | M200: -730 | N200: -730
A201: 716 | B201: -980 | C201: -980 | D201: -980 | E201: -980 | F201: -980 | G201: -980 | H201: -980 | I201: -920 | J201: -775 | K201: -730 | L201: -730 | M201: -730 | N201: -730
... 2 more rows

Sheet GraphData (hidden)
A1: Variety 1 | B1: 52
A2: Variety 2 | B2: 54.3
A3: Variety 3 | B3: 54.3
A4: Variety 4 | B4: 54.3
A5: Variety 5 | B5: 54.35
A6: Variety 6 | B6: 49.9
A7: Variety 7 | B7: 45.55
A8: Variety 8 | B8: 46.8
A9: Variety 9 | B9: 49.3
A10: Variety 10 | B10: 47.65

Sheet PremDisc (hidden)
A1: Strength | B1: P/D | D1: Mike | E1: P/D | H1: Mike1 | I1: P/D | L1: Extraneous Matter | O1: Uniformity | P1: P/D
B2: -500 | E2: <=32 | F2: >=33 | I2: <=32 | J2: >=33
A3: 18 | B3: -255 | E3: -945 | F3: -945 | H3: 2.4 | I3: =E4 -> -945 | J3: =F4 -> -945 | L3: Bark1 - TX/NM/OK/KS | M3: -320 | P3: -100
A4: 19 | B4: -255 | D4: 2.4 | E4: -945 | F4: -945 | H4: 2.5 | I4: =E5 -> -895 | J4: =F5 -> -895 | L4: Bark2 - TX/NM/OK/KS | M4: -505 | O4: 77.9 | P4: -100
A5: 20 | B5: -255 | D5: 2.5 | E5: -895 | F5: -895 | H5: 2.7 | I5: -585 | J5: -585 | O5: 78 | P5: -90
A6: 21 | B6: -255 | D6: 2.7 | E6: -585 | F6: -585 | H6: 3 | I6: -350 | J6: -350 | L6: Bark1 - Other Locations | M6: -445 | O6: 79 | P6: -75
A7: 22 | B7: -210 | D7: 3 | E7: -350 | F7: -350 | H7: 3.3 | I7: -180 | J7: -180 | L7: Bark2 - Other Locations | M7: -705 | O7: 80 | P7: 0
A8: 23 | B8: -180 | D8: 3.3 | E8: -180 | F8: -180 | H8: 3.5 | I8: 0 | J8: 0 | O8: 81 | P8: 0
A9: 24 | B9: -170 | D9: 3.5 | E9: 0 | F9: 0 | H9: 3.7 | I9: 15 | J9: 15 | O9: 82 | P9: 5
A10: 25 | B10: -145 | D10: 3.7 | E10: 15 | F10: 15 | H10: 4.2 | I10: 0 | J10: 0 | L10: ExMat1 | M10: =M6 -> -445 | O10: 83 | P10: 15
A11: 26 | B11: 0 | D11: 4.3 | E11: 0 | F11: 0 | H11: 5 | I11: -230 | J11: -230 | L11: ExMat2 | M11: =M7 -> -705 | O11: 84 | P11: 25
A12: 27 | B12: 0 | D12: 5 | E12: -230 | F12: -230 | H12: 5.3 | I12: -375 | J12: -375 | O12: 85 | P12: 35
A13: 28 | B13: 0 | D13: 5.3 | E13: -375 | F13: -375 | I13: -375 | J13: -375 | O13: 86 | P13: 45
A14: 29 | B14: 5 | E14: -375 | F14: -375 | L14: Preparation - Level 1 | M14: -160 | P14: 45
A15: 30 | B15: 25 | L15: Preparation - Level 2 | M15: -630
A16: 31 | B16: 40
A17: 33 | B17: 45 | L17: Other Extraneous - Level 1 | M17: =M6 -> -445
B18: 45 | L18: Other Extraneous - Level 2 | M18: =M7 -> -705

Sheet G (hidden)
A1: Staple | B1: Offset | E1: HVI | F1: STAPLE
A3: 26 | B3: 1 | E3: 0.8 | F3: 26
A4: 27 | B4: 2 | E4: 0.86 | F4: 28
A5: 28 | B5: 3 | E5: 0.9 | F5: 29
A6: 29 | B6: 4 | E6: 0.93 | F6: 30
A7: 30 | B7: 5 | E7: 0.96 | F7: 31
A8: 31 | B8: 6 | E8: 0.99 | F8: 32
A9: 32 | B9: 7 | E9: 1.02 | F9: 33
A10: 33 | B10: 8 | E10: 1.05 | F10: 34
A11: 34 | B11: 9 | E11: 1.08 | F11: 35
A12: 35 | B12: 10 | E12: 1.11 | F12: 36
A13: 36 | B13: 11 | E13: 1.14 | F13: 37
A14: 37 | B14: 12 | E14: 1.18 | F14: 38
A15: 38 | B15: 13 | E15: 1.21 | F15: 39
E16: 1.24 | F16: 40
E17: 1.27 | F17: 41
E18: 1.3 | F18: 42
E19: 1.33 | F19: 43
E20: 1.36 | F20: 44
